Cogmind - Beta 17 @@@ ROGUE MODE // 2026.07.21 @ 16:32:16 Player: winnking222 Result: Self-destructed Performance ------------- Evolutions (9) 4500 Regions Visited (28) 5600 Robots Destroyed (481) 2405 Value Destroyed (30254) 30254 Prototype IDs (34) 680 Alien Tech Used (0) 0 Bonus (25107) 25107 TOTAL SCORE: 68546 Bonus ------- High Alert Combat Kills 9069 Follower Combat Kills 7470 Hunted by Unchained 500 Entered Garrisons 2000 Used RIF Installer 6000 Scanned by Researcher 500 Friendly Fire -432 Cogmind --------- Core Integrity 1169/1600 Matter 91/700 Energy 350/350 System Corruption 32% Temperature Cool (0) Movement Walking (117) Location -1/Access Parts ------- > --- POWER (2) -------- Reinforced Quantum Reactor > --- PROPULSION (6) --- Biometal Leg Centrium Leg Centrium Leg Centrium Leg > --- UTILITY (12) ----- High-capacity Storage Unit Advanced Matter Compressor Graphene Brace Relay Coupler [Sentry] (30) > --- WEAPON (5) ------- Railgun > --- INVENTORY (20) --- Biometal Leg Wheel Advanced Cooling System Advanced Cooling System Long-range IFF Parser Quantum Capacitor Experimental EM Shield Relay Coupler [Sentry] (39) Relay Coupler [Proto] (22) Relay Coupler [Proto] (22) Relay Coupler [Proto] (22) KE Penetrator Railgun Railgun Railgun Advanced Remote Datajack Advanced Remote Datajack Peak State ------------ > --- POWER ------------ Light Quantum Reactor Reinforced Quantum Reactor > --- PROPULSION ------- Biometal Leg Biometal Leg Biometal Leg Centrium Leg Centrium Leg Centrium Leg > --- UTILITY ---------- Advanced Cooling System High-capacity Storage Unit Long-range IFF Parser Advanced Targeting Computer Advanced Target Analyzer Advanced Transmission Jammer Improved Heavy Armor Plating Relay Coupler [C] Relay Coupler [Sentry] Relay Coupler [Hunter] Relay Coupler [Behemoth] > --- WEAPON ----------- Railgun Railgun Hypervelocity Railgun Multirail Advanced Remote Datajack > --- INVENTORY -------- Biometal Leg Wheel Advanced Cooling System Advanced Cooling System Advanced Matter Compressor Quantum Capacitor Graphene Brace Experimental EM Shield Relay Coupler [Sentry] Relay Coupler [Sentry] Relay Coupler [Proto] Relay Coupler [Proto] Relay Coupler [Proto] KE Penetrator Railgun Railgun Railgun Micro-nuke Launcher Advanced Remote Datajack [Rating: 190] Favorites ----------- Power Reinforced Deuterium Engine Engine Reinforced Deuterium Engine Power Core Neutrino Core Reactor Light Quantum Reactor Propulsion Light Treads Treads Light Treads Leg Biometal Leg Wheel Wheel Hover Unit Improved Antigrav System Utility Huge Storage Unit Device Advanced Cooling System Storage Huge Storage Unit Processor Experimental Core Analyzer Hackware Relay Coupler [NC] Protection Hardened Medium Armor Plating Weapon KE Penetrator Energy Gun Improved Medium Laser Energy Cannon Phase Cannon Ballistic Gun KE Penetrator Ballistic Cannon Compact Linear Accelerator Launcher Guided Micro-nuke Launcher Special Weapon Advanced Remote Datajack Impact Weapon Great Maul Special Melee Weapon Datajack Build | -11 -10 -10 -9 -9 -8 -8 -8 -8 -7 -7 -7 -7 -6 -6 -6 -6 -5 -5 -4 -4 -3 -3 -3 -2 -2 -1 -1 -1 ------- Run | Yrd Mat Min Mat Sto Mat Gar Mat Gar Fac Gar Fac Gar Fac Was Fac Gar Fac Gar Fac Gar Res Gar Tes Res Gar Acc Gar Acc Slots Evolved 18 | . . . 2 . 2 . . . 2 . . . 2 . . . 2 . 2 . 2 . . 2 . 2 . . Power 1 | . . . . . . . . . . . . . . . . . . . 1 . . . . . . . . . Propulsion 4 | . . . 1 . . . . . 1 . . . . . . . . . . . 1 . . 1 . . . . Utility 10 | . . . . . 2 . . . 1 . . . 1 . . . 2 . 1 . 1 . . 1 . 1 . . Weapon 3 | . . . 1 . . . . . . . . . 1 . . . . . . . . . . . . 1 . . Parts Attached 464 | 7 5 2 19 17 18 13 16 3 4 39 . 18 8 11 3 13 26 17 5 15 4 19 49 19 31 . 31 52 Power 49 | 1 1 . 1 2 2 . 1 . . 2 . . . . 1 2 1 2 1 5 . 4 6 3 4 . 2 8 Engine 11 | 1 1 . 1 2 2 . 1 . . 2 . . . . . 1 . . . . . . . . . . . . Core 3 | . . . . . . . . . . . . . . . . . . . 1 2 . . . . . . . . Reactor 35 | . . . . . . . . . . . . . . . 1 1 1 2 . 3 . 4 6 3 4 . 2 8 Propulsion 103 | 2 . 2 5 6 6 3 5 . 2 10 . 4 1 2 . 5 3 2 . . . 2 16 5 4 . 7 11 Treads 57 | 2 . . 5 6 6 3 5 . 2 10 . 4 . 2 . 5 3 2 . . . 2 . . . . . . Leg 39 | . . . . . . . . . . . . . . . . . . . . . . . 12 5 4 . 7 11 Wheel 4 | . . 2 . . . . . . . . . . 1 . . . . . . . . . 1 . . . . . Hover 3 | . . . . . . . . . . . . . . . . . . . . . . . 3 . . . . . Flight . | . . . . . . . . . . . . . . . . . . . . . . . . . . . . . Utility 172 | 2 2 . 4 1 5 4 4 1 2 21 . 9 4 7 . 4 7 9 2 7 3 6 15 8 13 . 12 20 Device 58 | 1 1 . 1 . 2 4 . . 1 6 . . 1 6 . 1 4 . 2 . 1 2 6 3 5 . 1 10 Storage 6 | 1 1 . 1 . 1 . . . . . . . . . . . . . . . . . 1 . . . . 1 Processor 10 | . . . . . . . 1 . . 1 . . . . . . . 2 . . 1 . 2 . 1 . . 2 Hackware 57 | . . . . . . . 1 1 1 5 . 8 2 1 . 3 1 4 . 6 1 2 4 2 6 . 8 1 Protection 41 | . . . 2 1 2 . 2 . . 9 . 1 1 . . . 2 3 . 1 . 2 2 3 1 . 3 6 Artifact . | . . . . . . . . . . . . . . . . . . . . . . . . . . . . . Weapon 140 | 2 2 . 9 8 5 6 6 2 . 6 . 5 3 2 2 2 15 4 2 3 1 7 12 3 10 . 10 13 Energy Gun 24 | . 1 . . . 4 . . . . 3 . 3 1 . . . 4 . . . . 2 2 1 2 . 1 . Energy Cannon 16 | . . . 1 . . . . . . . . . 1 1 2 2 3 . . . 1 . 4 1 . . . . Ballistic Gun 76 | 2 1 . 8 5 1 5 4 2 . 3 . . 1 1 . . 6 3 1 1 . 5 3 . 6 . 8 10 Ballistic Cannon 1 | . . . . . . . . . . . . . . . . . . . . . . . . . . . . 1 Launcher 5 | . . . . . . 1 1 . . . . . . . . . 1 1 . . . . . . . . . 1 Special Weapon 14 | . . . . 1 . . 1 . . . . 2 . . . . . . . 2 . . 3 1 2 . 1 1 Impact Weapon 1 | . . . . 1 . . . . . . . . . . . . . . . . . . . . . . . . Slashing Weapon . | . . . . . . . . . . . . . . . . . . . . . . . . . . . . . Piercing Weapon . | . . . . . . . . . . . . . . . . . . . . . . . . . . . . . Special Melee Weapon 3 | . . . . 1 . . . . . . . . . . . . 1 . 1 . . . . . . . . . Unidentified Prototypes 27 | . . . 2 1 1 . 2 . . 1 . . . . . . 6 3 . . 1 . 3 1 . . . 6 Corrupted Parts 1 | . . . . . . . . . . . . . . . . . . . . . . 1 . . . . . . System Corruption 7 | . . . . . . . . . . . . . . . . . . . . . . 7 . . . . . . Parts Lost 155 | . 2 2 2 . 5 3 1 1 . 19 . 4 9 . . 2 6 3 2 4 . 6 32 2 15 . 9 26 Power 15 | . . . 1 . 1 . . . . 1 . . 1 . . . . . . 1 . . 4 . 3 . 1 2 Propulsion 34 | . . 2 1 . 1 2 . . . 6 . . 2 . . . 1 . . . . . 9 . 5 . 1 4 Utility 49 | . 1 . . . 1 1 1 1 . 6 . 1 2 . . . 3 3 . 2 . 2 7 1 2 . 2 13 Weapon 57 | . 1 . . . 2 . . . . 6 . 3 4 . . 2 2 . 2 1 . 4 12 1 5 . 5 7 Highest Loss Streak 12 | . 1 2 2 . 4 3 1 1 . 8 . 2 5 . . 1 4 1 1 2 . 3 12 2 8 . 7 8 To Critical Strikes 2 | . . . . . . . . . . . . . . . . . . . 1 . . . . . 1 . . . Average Backups 20 | 5 8 9 18 20 21 23 22 23 23 23 24 24 22 20 22 22 22 22 22 22 22 21 18 16 18 19 18 18 Power 1 | . 1 2 1 1 1 1 1 1 1 . 1 1 1 . 1 . . 1 1 1 1 1 . . . . . . Propulsion 2 | 3 2 . 2 4 4 2 2 3 2 2 3 2 . . 3 3 2 2 2 2 2 1 . 2 1 1 1 1 Utility 11 | . 2 4 6 7 6 10 11 12 13 14 17 16 14 14 14 14 12 11 13 13 14 13 11 10 11 14 14 12 Weapon 4 | . 3 2 6 6 6 8 5 5 6 3 1 3 4 3 3 3 5 5 5 4 3 4 4 1 2 2 2 2 Tool/Special . | . . . . . . . . . . . . . . . . . . . . . . . . . . . . . Unused Backups 74 | . 4 . 6 2 . 5 2 4 . 9 . . . . 1 5 4 1 . 4 . 3 2 . 3 . 2 17 Power 8 | . . . 1 1 . . 1 . . 1 . . . . . . 1 1 . . . . . . . . . 2 Propulsion 7 | . 2 . . . . . . . . . . . . . . 2 . . . . . . . . 1 . . 2 Utility 35 | . . . 2 . . 2 . 4 . 8 . . . . . 2 2 . . 1 . . 2 . 2 . 1 9 Weapon 22 | . 2 . 3 1 . 2 1 . . . . . . . 1 1 1 . . 3 . 3 . . . . 1 3 Tool/Special 2 | . . . . . . 1 . . . . . . . . . . . . . . . . . . . . . 1 Average Slot Usage (%) 90 | . 98 99 98 100 99 99 99 96 98 87 76 77 84 79 86 85 78 82 83 88 83 78 82 96 85 76 89 94 Engine 5 | . 13 14 10 11 8 9 9 9 7 7 7 7 6 6 6 1 . . . . . . . . . . . . Reactor 3 | . . . . . . . . . . . . . . . . 4 5 5 4 5 4 8 8 7 7 8 7 7 Treads 16 | . 28 15 31 33 27 26 27 26 29 19 15 16 19 9 13 12 11 11 10 10 9 9 3 . . . . . Leg 4 | . . . . . . . . . . . . . . . . . . . . . . . 7 25 21 16 22 23 Device 9 | . 13 14 . . 17 18 14 9 9 6 15 6 4 9 13 13 11 11 12 6 7 7 12 13 9 12 12 13 Storage 7 | . 14 14 11 11 9 9 9 9 7 7 7 7 6 6 6 6 5 5 5 5 4 4 4 4 4 4 4 4 Processor 2 | . . . . . . . 2 9 7 1 . . . . . . . 1 5 5 4 4 7 7 4 . . 2 Hackware 10 | . . . . . . . . 2 11 10 . 5 14 14 13 19 13 14 15 24 23 19 16 12 16 16 18 18 Protection 6 | . . . 10 11 9 8 9 2 . 10 7 9 9 3 6 . 4 6 5 3 4 5 1 6 3 4 5 5 Energy Gun 3 | . 3 14 . . 12 9 . . . 6 7 13 11 6 1 . 10 . . . . 2 3 3 . . . . Energy Cannon 2 | . . . . . . . . . . . . . 1 10 18 25 7 . . . . . 3 3 . . . . Ballistic Gun 15 | . 23 14 32 26 14 17 26 24 18 13 15 4 2 . . . 1 22 15 15 13 12 6 6 11 12 14 15 Special Weapon 1 | . . . . 1 . . . 2 4 2 . 3 6 6 6 . . . . 1 3 . 2 1 2 4 3 3 Peak Build Rating 190 | 7 9 9 19 21 30 34 38 42 48 76 76 76 60 72 78 92 123 126 140 139 145 152 151 170 174 143 163 190 Average Rating 80 | 5 8 8 15 19 26 31 34 39 46 49 75 67 55 51 74 85 100 116 132 131 139 141 128 162 148 143 155 174 On Entrance 78 | . 7 9 9 19 19 30 34 37 42 43 76 76 58 33 72 75 92 123 126 136 126 143 141 136 170 143 143 162 Avg Prop Armor Cover (%) 4 | . . 5 4 . . . . . . . . 7 . 7 . . . . . . . . 2 . . . . 1 Naked Turns . | . . . . . . . . . . . . . . . . . . . . . . . . . . . . . Heaviest Build 177 | 14 30 30 102 106 108 115 118 111 109 124 124 125 123 128 136 142 166 155 148 151 150 165 177 133 133 114 125 141 Greatest Support 174 | 40 40 40 60 60 60 60 64 64 84 150 150 150 115 140 140 150 135 150 150 150 150 150 145 165 167 113 167 174 Greatest Overweight (x) 36 | . . 2 1 1 1 1 1 1 1 5 . 1 9 10 . 1 1 1 . 1 . 1 36 . 1 1 1 . Average Overweight (x) . | . . . . 1 1 1 1 1 1 . . . 1 4 . . . . . . . . 1 . . 1 . . Largest Inventory Capacity 25 | 8 15 15 25 25 25 25 25 25 25 25 25 25 25 25 25 25 25 25 25 25 25 25 25 20 20 20 20 20 Average Capacity 23 | 7 11 15 24 25 25 25 25 25 25 25 25 25 25 25 25 25 25 25 25 25 25 25 22 20 20 20 20 20 Most Carried 25 | 7 10 14 25 25 25 25 25 25 25 25 25 25 25 25 25 25 25 25 25 25 25 25 25 20 20 20 20 20 Average Carried 22 | 5 8 11 23 24 22 24 24 24 24 23 24 24 22 20 24 24 24 24 24 24 24 23 19 17 19 20 19 19 Final Capacity 25 | 8 15 15 25 25 25 25 25 25 25 25 25 25 25 25 25 25 25 25 25 25 25 25 20 20 20 20 20 20 Final Carried 25 | 7 10 14 25 25 25 24 25 25 25 25 25 25 20 23 25 25 25 25 25 25 22 25 16 20 20 20 20 18 Class Distribution -------------------- 35% | Botlord-Tank 20% | Scavenger-Tank 11% | Botlord-Gunner 10% | Mutant 6% | Bothacker-Gunner 6% | Bothacker-Tank 5% | Tank Dominant Class ---------------- Mutant | -10/Materials Mutant | -10/Mines Scavenger-Tank | -9/Materials Mutant | -9/Storage Scavenger-Tank | -8/Materials Bothacker-Tank | -8/Garrison Bothacker-Tank | -8/Materials Bothacker-Gunner | -8/Garrison Bothacker-Gunner | -7/Factory Botlord-Tank | -7/Garrison Botlord-Tank | -7/Factory Botlord-Tank | -7/Garrison Botlord-Tank | -6/Factory Botlord-Tank | -6/Waste Botlord-Tank | -6/Factory Scavenger-Tank | -6/Garrison Botlord-Tank | -5/Factory Botlord-Tank | -5/Garrison Botlord-Tank | -4/Factory Botlord-Tank | -4/Garrison Botlord-Tank | -3/Research Scavenger-Tank | -3/Garrison Botlord-Gunner | -3/Testing Botlord-Gunner | -2/Research Botlord-Gunner | -2/Garrison Botlord-Gunner | -1/Access Botlord-Tank | -1/Garrison Botlord-Tank | -1/Access Resources | -11 -10 -10 -9 -9 -8 -8 -8 -8 -7 -7 -7 -7 -6 -6 -6 -6 -5 -5 -4 -4 -3 -3 -3 -2 -2 -1 -1 -1 ----------- Run | Yrd Mat Min Mat Sto Mat Gar Mat Gar Fac Gar Fac Gar Fac Was Fac Gar Fac Gar Fac Gar Res Gar Tes Res Gar Acc Gar Acc Matter Collected 23175 | 334 197 89 507 758 1283 532 1095 524 119 1562 . 745 314 282 67 201 259 2343 511 1628 257 1013 1889 498 1319 . 1127 3722 Remotely . | . . . . . . . . . . . . . . . . . . . . . . . . . . . . . Salvage Created 28446 | 169 289 191 877 1052 1603 641 1374 510 75 1948 . 299 411 1633 180 1684 983 2167 375 1061 388 1432 2114 1237 1339 . 260 4154 Parts 1258 | 15 20 7 59 57 77 38 84 31 8 81 . 9 15 16 2 57 49 33 24 72 24 58 110 40 68 . 17 187 Haulers Intercepted 16 | . . . 2 6 3 . 3 . . . . . . . . . 1 . . . . . . . . . . 1 Recyclers Shooed 16 | . 1 . 1 2 3 . . . . . . . . . . . 5 . . . . . . 1 . . . 3 Parts Field Recycled . | . . . . . . . . . . . . . . . . . . . . . . . . . . . . . Retrieved Matter . | . . . . . . . . . . . . . . . . . . . . . . . . . . . . . Parts Self-Destructed . | . . . . . . . . . . . . . . . . . . . . . . . . . . . . . Prevented . | . . . . . . . . . . . . . . . . . . . . . . . . . . . . . Parts Restored . | . . . . . . . . . . . . . . . . . . . . . . . . . . . . . Kills | -11 -10 -10 -9 -9 -8 -8 -8 -8 -7 -7 -7 -7 -6 -6 -6 -6 -5 -5 -4 -4 -3 -3 -3 -2 -2 -1 -1 -1 ------- Run | Yrd Mat Min Mat Sto Mat Gar Mat Gar Fac Gar Fac Gar Fac Was Fac Gar Fac Gar Fac Gar Res Gar Tes Res Gar Acc Gar Acc Combat Hostiles Destroyed 476 | . 10 4 13 10 28 24 18 19 2 24 . 7 7 6 3 19 17 105 6 26 3 22 29 10 18 . 3 43 Guns 380 | . 10 3 13 10 27 17 18 15 2 24 . 7 6 . . . 13 105 6 20 2 14 20 2 9 . 3 34 Cannons 50 | . . . . . . . . . . . . . . 4 2 18 . . . 2 . 1 8 8 7 . . . AOE 37 | . . . . . . 7 . 4 . . . . . . . . 3 . . 4 1 7 1 . 1 . . 9 Classes Destroyed 26 | 2 3 . 3 1 5 1 1 1 . . . . . 1 . 1 2 2 . . . . 2 1 . . . . Worker 12 | . . . . . 1 . 4 . . . . . 1 . . . . . . . . . 2 . . . . 4 Builder 6 | . . . 1 . 1 . 1 . . . . . . . . . . . . . . . 1 . . . . 2 Tunneler 7 | 4 1 . . . 1 . . . . . . . . . . . . . . . 1 . . . . . . . Hauler 16 | . . . 2 6 3 . 3 . . . . . . . . . 1 . . . . . . . . . . 1 Recycler 21 | 1 . . 2 3 . . 3 . . . . . . . . . 1 . . . 1 . 1 3 . . . 6 Mechanic 5 | . . . . . 1 . . . . . . . . . . . 1 . . . . . 1 . . . . 2 Operator 3 | . . . . 1 1 . . . . . . . . . . . . . 1 . . . . . . . . . Watcher 15 | . 1 . 2 2 2 . 4 . . . . . . . . . 1 . . . 1 . . 1 . . . 1 Swarmer 75 | . 6 . . . 3 13 5 9 1 . . . . . . 4 2 3 . 8 1 8 3 . 3 . 1 5 Cutter 7 | . . . . . . 2 . . . 2 . . . . . . . . . 3 . . . . . . . . Saboteur 2 | . . . . . . . . . . . . . . . . . 1 . . 1 . . . . . . . . Grunt 130 | . 4 4 6 6 15 7 5 8 . 6 . 2 6 . 3 8 4 4 1 3 . 10 6 1 1 . . 20 Brawler 15 | . . . . . 2 . . . . 4 . 1 . . . 1 . . . . . 1 3 . 1 . . 2 Duelist 12 | . . . . . 2 . . . . . . 1 1 . . . . . . . . . 2 3 1 . . 2 Protector 3 | . . . . . . . . . . . . . . . . . 1 . . . . . . . . . . 2 Sentry 39 | . . . 7 4 5 . 6 . . 6 . . . . . 3 . 2 . 1 . 2 . . 1 . . 2 Demolisher 2 | . . . . . . . . . . . . . . . . . . . . . . . 2 . . . . . Specialist 9 | . . . . . . . 1 . . 2 . . . . . . 1 . 2 . . 1 . 2 . . . . Hunter 39 | . . . . . 1 2 1 . . 2 . . . . . 1 5 1 2 6 . 2 3 2 4 . 3 4 Programmer 47 | . . . . . . . . 2 1 3 . 3 1 . . . 3 . 1 4 2 1 9 1 7 . . 9 Heavy 2 | . . . . . . . . . . . . . . . . . . . . . . . . 1 . . . 1 Q-Series 2 | . . . . . . . . . . . . . . . . . . . . . . . 1 . . . . 1 Behemoth 2 | . . . . . . . . . . . . . . . . 2 . . . . . . . . . . . . Compactor 6 | . . . . . . . . . . . . . . 6 . . . . . . . . . . . . . . Executioner 2 | . . . . . . . . . . . . . . . . . . 2 . . . . . . . . . . Assembled 93 | . . . . . . . . . . . . . . . . . . 93 . . . . . . . . . . Thug 1 | . . . . . . 1 . . . . . . . . . . . . . . . . . . . . . . Guerrilla 1 | . . . . . . . . . . . . . . . . . . . . . 1 . . . . . . . Best Kill Streak 36 | 5 4 2 3 4 8 7 9 5 2 5 . 3 2 2 3 4 12 36 4 4 5 3 7 8 4 . 1 12 Combat Bots Only 36 | . 4 2 2 2 8 7 3 5 2 5 . 3 2 2 3 4 10 36 4 4 2 3 6 6 4 . 1 11 Max Kills in Single Turn 4 | 1 2 1 2 1 2 2 2 3 1 2 . 1 1 1 1 1 2 3 2 2 3 3 2 1 1 . 1 4 Gunslinging 1 | . 1 . . . 1 . . 1 . 1 . . . . . . . 1 1 1 . . 1 . . . . 1 Exploded 3 | . . . . . . 2 . 3 . . . . . . . . 2 . . 2 1 3 1 . 1 . . 3 Melee . | . . . . . . . . . . . . . . . . . . . . . . . . . . . . . Uniques/NPCs Destroyed . | . . . . . . . . . . . . . . . . . . . . . . . . . . . . . Combat | -11 -10 -10 -9 -9 -8 -8 -8 -8 -7 -7 -7 -7 -6 -6 -6 -6 -5 -5 -4 -4 -3 -3 -3 -2 -2 -1 -1 -1 -------- Run | Yrd Mat Min Mat Sto Mat Gar Mat Gar Fac Gar Fac Gar Fac Was Fac Gar Fac Gar Fac Gar Res Gar Tes Res Gar Acc Gar Acc Hostile Shots Fired 3173 | . 75 30 56 65 128 115 77 76 22 471 . 100 81 . 16 128 223 157 33 95 13 127 324 58 188 . 57 458 Missed 901 | . 25 7 14 16 34 35 22 26 7 135 . 19 20 . 4 37 53 45 9 35 1 30 87 16 59 . 18 147 Intercepted 16 | . . . . . . . . . . . . . . . . . . . . . . . 16 . . . . . Hits 2272 | . 50 23 42 49 94 80 55 50 15 336 . 81 61 . 12 91 170 112 24 60 12 97 237 42 129 . 39 311 Melee 92 | . . . . . 10 4 . . . 6 . 13 7 . . 3 . 11 . 7 . . 13 8 5 . . 5 Projectile 2180 | . 50 23 42 49 84 76 55 50 15 330 . 68 54 . 12 88 170 101 24 53 12 97 224 34 124 . 39 306 AOE 29 | . . . . . . 2 . . . 3 . . . . . . 3 . . . . . 17 . 2 . 2 . Critical Strikes 101 | . 1 . 2 3 8 4 2 1 . 1 . 10 2 . . 2 8 2 2 5 1 6 14 4 4 . 3 16 Actively Blocked 10 | . . . . . . . . . . . . . . . . . . . . . . . . . . . 2 8 Part Disruptions 9 | . . . . . . . . . . . . . . . . . . 1 . 2 . . 3 . . . . 3 Damage Taken 42404 | . 476 309 583 705 1635 959 820 720 167 3283 . 1512 1379 . 231 1608 3538 1889 697 1339 363 2335 5821 1160 3232 . 1057 6586 Core 3781 | . 60 37 108 101 160 89 107 145 19 427 . 131 68 . 20 136 189 113 79 16 23 183 931 45 163 . 62 369 Absorbed by Shields 314 | . . . . . . 94 68 . . 78 . . . . . . . . . . . . . . 62 . 12 . Reduced by Siege Mode 287 | . . . . . . . . . . . . . . . . 48 230 9 . . . . . . . . . . Redirected to Shielding 10 | . . . . . . . . . . . . . . . . . . . . . . . . 10 . . . . Ignored by Resistances 144 | . . . . . . . . . . . . . . . . . . . . . . . . . . . . 144 Core Remaining (%) 56 | 100 . 61 . 47 . . . 8 . . . 17 . . . 73 . 69 . 91 . . 12 . 85 . . . Volleys Fired 1830 | 16 58 18 35 52 108 54 65 38 7 93 . 94 40 55 6 73 36 122 31 90 28 55 162 53 142 . 86 213 Largest 5 | 2 2 2 3 3 3 3 3 3 3 3 . 3 3 3 3 4 4 4 4 4 4 4 4 4 4 . 5 4 Hottest 373 | 40 76 76 96 69 175 175 84 84 84 177 . 162 205 230 260 345 373 143 136 214 141 194 334 268 165 . 173 155 Shots Fired 4692 | 32 116 36 105 153 316 145 189 94 12 229 . 192 87 150 18 251 117 453 87 220 51 150 340 111 221 . 178 639 Gun 3809 | 32 116 36 105 153 316 138 186 88 7 214 . 166 70 47 . . 80 453 87 189 32 135 219 63 157 . 150 570 Cannon 574 | . . . . . . . . . . . . . 4 96 18 246 33 . . 16 1 4 78 42 36 . . . Launcher 41 | . . . . . . 7 . 3 . 1 . . . . . . 4 . . 9 . 6 . . 3 . . 8 Special 268 | . . . . . . . 3 3 5 14 . 26 13 7 . 5 . . . 6 18 5 43 6 25 . 28 61 Kinetic 3110 | 32 108 18 100 153 216 63 186 88 7 172 . 53 27 . . . 10 453 87 189 32 109 120 36 139 . 142 570 Thermal 1253 | . 8 18 5 . 100 75 . . . 44 . 113 47 143 18 246 103 . . 16 1 30 172 69 45 . . . Explosive 41 | . . . . . . 7 . 3 . 1 . . . . . . 4 . . 9 . 6 . . 3 . . 8 Electromagnetic 22 | . . . . . . . . . . . . . . . . . . . . . . . 5 . 9 . 8 . Robot Hit Streak 47 | 7 11 12 20 24 22 8 8 9 9 47 . 17 9 14 4 28 11 14 5 6 5 14 10 11 10 . 6 20 Robot Miss Streak 10 | 3 4 2 3 4 4 4 5 2 1 7 . 4 4 5 1 2 5 10 7 7 4 6 4 5 4 . 7 6 Penetration Max 2 | . . . . . . 1 1 1 . 1 . . . . . . . 1 1 1 1 1 1 . . . 1 2 Secondary Targets 85 | . 2 . . 1 7 5 1 4 . 3 . 1 1 . . . 3 30 1 8 1 2 4 . 2 . 1 8 Max Gunslinging Chain 2 | . 1 . . 1 1 1 1 1 . 1 . 1 1 . . . 2 2 1 2 1 1 1 . 1 . 1 1 Capacitor 67 | . . . . . . . . . . . . . . . . . . . . . . . . 20 43 . 4 . Shots Hit Robots 2597 | 18 59 26 78 98 205 63 112 55 8 180 . 103 69 115 11 130 70 196 38 76 24 72 194 64 102 . 62 369 Core Hits 1210 | 8 24 10 37 34 72 39 49 27 3 95 . 46 42 20 4 51 55 123 15 46 11 52 77 33 48 . 14 175 Critical Kills 55 | . . . 1 . 1 . 1 . . 2 . . . 2 1 . 1 19 2 4 3 1 . 2 2 . 2 11 Critical Parts Destroyed 74 | . 1 . 1 3 . . 5 2 . 2 . . 2 . . . 3 19 3 5 . 5 4 . 2 . 1 16 Critical Strikes 160 | . 1 2 2 3 9 1 6 2 . 6 . 1 5 4 1 . 4 39 5 9 3 6 4 6 5 . 4 32 Burn 24 | . . 2 . . 8 1 . . . 2 . 1 3 2 . . . . . . . . . 4 1 . . . Meltdown 5 | . . . . . . . . . . . . . . 2 1 . 1 . . . . . . 1 . . . . Destroy 131 | . 1 . 2 3 1 . 6 2 . 4 . . 2 . . . 3 39 5 9 3 6 4 1 4 . 4 32 Melee Attacks 34 | . . . . 16 . . . . . 4 . . . . . . 2 6 3 3 . . . . . . . . Impact 15 | . . . . 11 . . . . . 4 . . . . . . . . . . . . . . . . . . Slashing . | . . . . . . . . . . . . . . . . . . . . . . . . . . . . . Piercing . | . . . . . . . . . . . . . . . . . . . . . . . . . . . . . Sneak Attacks 10 | . . . . 5 . . . . . . . . . . . . 2 3 . . . . . . . . . . Combat Hostiles . | . . . . . . . . . . . . . . . . . . . . . . . . . . . . . Follow-up Attacks . | . . . . . . . . . . . . . . . . . . . . . . . . . . . . . Damage Inflicted 68099 | 169 687 308 984 1433 3344 1664 2542 1388 75 3580 . 1663 1183 2957 338 4299 3679 5887 1036 2933 612 3431 6079 1923 2863 . 1101 11941 Guns 47683 | 169 675 308 981 1385 3340 1141 2526 1060 75 3458 . 1663 1133 648 . . 1346 5887 1036 1892 415 1960 3865 884 1716 . 1101 9019 Cannons 11802 | . . . . . . . . . . . . . 50 2309 338 4299 597 . . 239 . 133 2068 1039 730 . . . Explosions 8480 | . . . . . . 523 6 328 . 112 . . . . . . 1736 . . 802 197 1338 127 . 417 . . 2894 Melee 48 | . . . . 48 . . . . . . . . . . . . . . . . . . . . . . . . Ramming 76 | . 12 . 3 . 4 . 10 . . . . . . . . . . . . . . . 19 . . . . 28 Kinetic 37924 | 169 590 77 910 1385 2260 415 2526 1060 75 2628 . 395 588 . . . 198 5887 1036 1892 415 1518 1976 461 1454 . 990 9019 Thermal 21316 | . 85 231 71 . 1080 726 . . . 840 . 1268 595 2957 338 4299 1745 . . 239 . 575 3962 1462 843 . . . Explosive 8353 | . . . . . . 523 6 328 . 112 . . . . . . 1736 . . 802 197 1338 . . 417 . . 2894 Electromagnetic 382 | . . . . . . . . . . . . . . . . . . . . . . . 122 . 149 . 111 . Impact 48 | . . . . 48 . . . . . . . . . . . . . . . . . . . . . . . . Slashing . | . . . . . . . . . . . . . . . . . . . . . . . . . . . . . Piercing . | . . . . . . . . . . . . . . . . . . . . . . . . . . . . . Highest Corruption 32 | . . . . . 5 6 6 9 2 19 19 23 1 1 1 1 1 8 . 5 1 11 28 1 6 . . 32 Average Corruption 7 | . . . . . 5 5 6 8 2 11 19 22 1 1 1 1 1 5 . 3 1 3 13 1 2 . . 10 Corruption Purged . | . . . . . . . . . . . . . . . . . . . . . . . . . . . . . Corruption Blocked 7 | . . . . . . . . . . . . . . . . . . . . . . . 7 . . . . . Effects 692 | . . . . . 41 42 35 60 4 94 3 85 1 6 3 11 . 56 . 29 . 29 99 2 27 . . 65 Message Errors 187 | . . . . . 15 11 6 16 . 29 . 26 . 2 2 3 . 19 . 7 . 8 20 . 6 . . 17 Matter Fused 147 | . . . . . 4 16 9 16 2 19 . 12 1 3 1 3 . 10 . 6 . 5 23 . 7 . . 10 Heat Flow Errors 69 | . . . . . 3 3 2 7 1 5 2 8 . . . 1 . 7 . 4 . 7 6 1 5 . . 7 Energy Discharges 82 | . . . . . 5 1 3 8 . 11 . 12 . . . . . 5 . 5 . 4 15 1 3 . . 9 Parts Rejected 11 | . . . . . . . . 2 . 1 . 2 . 1 . . . 1 . . . . . . . . . 4 Parts Fused 6 | . . . . . . . 1 1 . . . 2 . . . . . 1 . . . . 1 . . . . . Data Loss (minor) 78 | . . . . . 7 8 7 7 . 9 1 8 . . . 2 . 4 . 4 . 2 11 . 2 . . 6 Data Loss (major) 29 | . . . . . 1 1 1 1 . 4 . 4 . . . 2 . . . 1 . 2 8 . 1 . . 3 Misfires 30 | . . . . . 2 . 4 . 1 5 . 4 . . . . . 4 . 2 . . 3 . 1 . . 4 Alerts 11 | . . . . . 1 1 . 2 . 3 . 1 . . . . . . . . . . 3 . . . . . Misdirections 1 | . . . . . . . . . . . . . . . . . . . . . . . . . . . . 1 Weapon Failures 41 | . . . . . 3 1 2 . . 8 . 6 . . . . . 5 . . . 1 9 . 2 . . 4 Overload Shots . | . . . . . . . . . . . . . . . . . . . . . . . . . . . . . Overflow Damage 535 | . . . . 24 . 31 . 58 . . . . . . . 63 14 . . 34 . 21 77 . 19 . . 194 Projectiles 174 | . . . . . . . . . . . . . . . . 63 . . . 34 . . 77 . . . . . Explosions 330 | . . . . . . 31 . 58 . . . . . . . . 14 . . . . 21 . . 19 . . 187 Melee 31 | . . . . 24 . . . . . . . . . . . . . . . . . . . . . . . 7 Knockbacks . | . . . . . . . . . . . . . . . . . . . . . . . . . . . . . Impact . | . . . . . . . . . . . . . . . . . . . . . . . . . . . . . Kinetic . | . . . . . . . . . . . . . . . . . . . . . . . . . . . . . Secondary . | . . . . . . . . . . . . . . . . . . . . . . . . . . . . . Self-Inflicted Damage 833 | . . . . . . 37 . 26 . . . . . . . . 30 . . 94 134 . 80 . 16 . . 416 Shots 12 | . . . . . . 1 . 1 . . . . . . . . 1 . . 1 1 . 1 . 1 . . 5 Rammed 7 | . 2 . 2 . 2 . 1 . . . . . . . . . . . . . . . . . . . . . Targets Rammed 12 | . 2 . 2 . 2 . 2 . . . . . . . . . . . . . . . 3 . . . . 1 Kicked 4 | . . . . . . . . . . . . . . . . . . . . . . . 3 . . . . 1 Crushed 1 | . . . . . . . 1 . . . . . . . . . . . . . . . . . . . . . Highest Temperature 531 | . 134 246 158 103 149 211 270 230 172 267 241 477 501 128 155 374 366 250 85 247 307 252 531 331 494 . 130 226 Average Temperature 84 | . 47 122 32 24 37 81 87 66 99 79 132 126 171 46 73 101 85 40 32 74 111 83 99 129 111 . 34 37 Received Heat Transfer 6636 | . 90 177 258 345 720 265 320 243 39 676 . 408 408 . 108 456 333 304 27 151 21 163 467 36 198 . 45 378 Effects 19 | . . . . . . . 1 . . 1 . 5 2 . . 2 . . . . 1 1 2 1 2 . . 1 Shutdowns 3 | . . . . . . . . . . . . 1 . . . . . . . . . . 1 . 1 . . . Energy Bleed 2 | . . . . . . . 1 . . 1 . . . . . . . . . . . . . . . . . . Interference 8 | . . . . . . . . . . . . 3 . . . 2 . . . . 1 1 . . . . . 1 Matter Decay 2 | . . . . . . . . . . . . . 2 . . . . . . . . . . . . . . . Short Circuit 2 | . . . . . . . . . . . . 1 . . . . . . . . . . . 1 . . . . Damage (minor) 2 | . . . . . . . . . . . . . . . . . . . . . . . 1 . 1 . . . Siege Activations 6 | . . . . . . . . . . . . . . . . 2 1 3 . . . . . . . . . . Total Turns 73 | . . . . . . . . . . . . . . . . 18 26 29 . . . . . . . . . . Longest Duration 26 | . . . . . . . . . . . . . . . . 9 26 14 . . . . . . . . . . Martial Activations . | . . . . . . . . . . . . . . . . . . . . . . . . . . . . . Shielding Activations . | . . . . . . . . . . . . . . . . . . . . . . . . . . . . . Robots Disrupted . | . . . . . . . . . . . . . . . . . . . . . . . . . . . . . Combat Hostiles . | . . . . . . . . . . . . . . . . . . . . . . . . . . . . . Robots Corrupted 1 | . . . . . . . . . . . . . . . . . . . . . . . . . 1 . . . Combat Hostiles 1 | . . . . . . . . . . . . . . . . . . . . . . . . . 1 . . . Parts Fried 3 | . . . . . . . . . . . . . . . . . . . . . . 1 . . 2 . . . Impact Corruptions 3 | . . . . 2 . . . . . . . . . . . . . . . . . . . . . . . 1 Robots Melted 9 | . . 1 . . 1 . . . . . . . 1 2 1 1 1 . . . . . . 1 . . . . Combat Hostiles 8 | . . 1 . . 1 . . . . . . . 1 2 1 1 1 . . . . . . . . . . . Parts Melted 59 | . . 4 . 2 9 2 . . . 3 . 2 3 4 1 9 4 . . . . 2 5 6 2 . . 1 Heat Transferred 32268 | . 222 740 185 . 2923 1665 . . . 1935 . 2140 1517 5232 446 5459 2381 . . 128 . 666 3965 1776 888 . . . Parts Sabotaged 5 | . . . . . . . . . . . . . . . . . . . . 5 . . . . . . . . Parts Stolen . | . . . . . . . . . . . . . . . . . . . . . . . . . . . . . Parts Stripped . | . . . . . . . . . . . . . . . . . . . . . . . . . . . . . Power Chain Reactions 1 | . . . . . . . . . . . . . . . . . . . . . . . 1 . . . . . Alert | -11 -10 -10 -9 -9 -8 -8 -8 -8 -7 -7 -7 -7 -6 -6 -6 -6 -5 -5 -4 -4 -3 -3 -3 -2 -2 -1 -1 -1 ------- Run | Yrd Mat Min Mat Sto Mat Gar Mat Gar Fac Gar Fac Gar Fac Was Fac Gar Fac Gar Fac Gar Res Gar Tes Res Gar Acc Gar Acc Maximum Alert Level 5 | . . . . 2 1 4 3 4 2 4 3 3 2 . . 3 3 5 4 5 4 5 4 2 5 3 3 4 Low Security (%) 19 | 100 100 100 100 24 43 6 . . . . . . . 100 100 11 . . . . . . . . . . . . Level 1 12 | . . . . 71 56 9 . . . 7 . . 31 . . 23 . . . . . . . . . . . 2 Level 2 21 | . . . . 3 . 26 76 18 100 44 . 30 68 . . 40 47 . . . . . . 100 11 . 53 42 Level 3 22 | . . . . . . 28 23 26 . 30 100 69 . . . 24 52 56 55 23 . 15 12 . 43 100 46 28 Level 4 18 | . . . . . . 28 . 55 . 17 . . . . . . . 19 44 39 100 17 87 . 35 . . 25 Level 5 6 | . . . . . . . . . . . . . . . . . . 24 . 37 . 66 . . 9 . . . High Security . | . . . . . . . . . . . . . . . . . . . . . . . . . . . . . Max Security . | . . . . . . . . . . . . . . . . . . . . . . . . . . . . . Peak Influence 2357 | 15 145 74 79 449 298 1271 847 1318 691 1571 824 955 501 116 89 987 1045 2024 1291 2232 1273 2357 1325 671 1628 976 951 1394 Initial 1325 | . . . . . 68 165 619 547 691 382 824 555 501 116 . 27 518 707 1062 869 1255 897 1325 648 487 976 772 570 Average 713 | 2 27 10 15 254 204 783 578 1039 611 767 810 785 415 15 39 505 723 1198 1122 1500 1203 1709 1171 573 1077 971 721 796 Influence Increases 21051 | 25 345 174 404 1058 832 1136 816 801 66 1439 . 660 211 3 99 1020 1115 1347 506 1483 228 1620 985 340 1411 . 569 2358 Destroy 0b10 Robot/C 8900 | . 200 140 260 500 560 580 360 380 40 480 . 240 140 . 60 420 580 240 220 580 80 620 580 200 500 . 60 880 Destroy 0b10 Robot/NC 580 | 25 10 . 35 70 50 . 75 . . 30 . 5 5 . . 25 55 5 15 . 20 . 30 20 10 . . 95 Destroy Leader 1306 | . 42 30 88 166 150 10 124 40 10 . . 40 20 . 10 20 100 10 64 30 12 60 52 32 60 . 10 126 Allied During Kill 1539 | . . 4 . 181 . 20 . . . 9 . 40 . . . 61 161 13 144 84 20 319 23 7 145 . 35 273 Trap Triggered on 0b10 50 | . . . . . 30 . . 10 . 10 . . . . . . . . . . . . . . . . . . Successful Hack 308 | . 48 . 5 46 23 28 12 16 . 14 . . . . 9 14 . 14 . 14 . 16 . . 35 . 14 . Disable Machine 630 | . . . . 60 . 30 75 15 . 60 . . . . 15 . 75 . 15 15 30 30 105 15 . . . 90 Anti-Garrison Action 5150 | . . . . . . 400 . 250 . 800 . 300 . . . 350 . 1000 . 450 . 400 . . 400 . 350 450 Destroy Structure 1823 | . . . 1 5 4 68 35 15 1 21 . 20 1 3 5 115 144 65 48 310 66 175 60 51 231 . 70 309 Partial Spotted 45 | . . . . . . . . . . . . . . . . . . . . . . . . 15 . . . 30 Lose Combat Pursuer 720 | . 45 . 15 30 15 . 135 75 15 15 . 15 45 . . 15 . . . . . . 135 . 30 . 30 105 Influence Decreases 19657 | 25 345 174 404 895 740 120 1244 326 837 415 777 499 834 335 60 72 1091 334 1288 493 1263 460 2188 844 433 662 584 1915 Entered New Map 9906 | . . . . . 95 90 652 296 627 165 747 239 454 216 . 12 469 304 962 373 977 300 1032 506 163 652 194 381 Time Decay 5915 | 25 329 154 334 735 595 . 522 . 190 . 30 . 230 119 60 . 482 . 206 . 246 . 636 318 . 10 . 694 Lost Part 1546 | . 16 20 20 . 50 30 10 10 . 190 . 40 90 . . 20 60 30 20 40 . 60 320 20 150 . 90 260 Lost Ally 2090 | . . . . 160 . . 60 20 20 60 . 220 60 . . 40 80 . 100 80 40 100 200 . 120 . 300 430 Purge Threat 200 | . . . 50 . . . . . . . . . . . . . . . . . . . . . . . . 150 Squads Dispatched 79 | . 2 . . 2 6 . 6 . 2 . . . 5 . 1 . 5 . 1 . 1 . 17 4 . . . 27 Investigation 4 | . 2 . . 1 . . . . . . . . . . 1 . . . . . . . . . . . . . Extermination 14 | . . . . . . . . . . . . . 1 . . . 2 . . . 1 . 3 1 . . . 6 Reinforcement 18 | . . . . 1 2 . 3 . . . . . . . . . 2 . 1 . . . 3 2 . . . 4 Assault 25 | . . . . . . . . . . . . . 1 . . . 1 . . . . . 10 . . . . 13 Garrison 18 | . . . . . 4 . 3 . 2 . . . 3 . . . . . . . . . 1 1 . . . 4 Intercept . | . . . . . . . . . . . . . . . . . . . . . . . . . . . . . Searches Triggered . | . . . . . . . . . . . . . . . . . . . . . . . . . . . . . Unchained Authorized 2 | . . . . . . . . . . . . . . . . . . . 1 . . . . . . . . 1 Construction Impeded 1 | . . . . . 1 . . . . . . . . . . . . . . . . . . . . . . . Haulers Reinforced 1 | . . . . . . . . . . . . . . . . . . . . . . . . . . . . 1 Active Scanning Responses . | . . . . . . . . . . . . . . . . . . . . . . . . . . . . . Cargo Convoy Interrupts 1 | . . . . . . . . . . . . . . . . . 1 . . . . . . . . . . . Alert ID Control Effect 133 | . . . . . . . . . 1 5 . 7 2 . . 10 . . 2 13 13 12 6 3 7 . 21 31 Stealth | -11 -10 -10 -9 -9 -8 -8 -8 -8 -7 -7 -7 -7 -6 -6 -6 -6 -5 -5 -4 -4 -3 -3 -3 -2 -2 -1 -1 -1 --------- Run | Yrd Mat Min Mat Sto Mat Gar Mat Gar Fac Gar Fac Gar Fac Was Fac Gar Fac Gar Fac Gar Res Gar Tes Res Gar Acc Gar Acc Distress Signals 30 | . 1 . 1 5 5 . 7 . . . . . . . . . . . . . 3 . 5 . . . . 3 Communications Jammed 345 | . . . . . . . . . . . . . 1 . . . 25 . 59 . 27 . 161 18 . . 3 51 Distress Signals 340 | . . . . . . . . . . . . . . . . . 25 . 59 . 25 . 161 18 . . 3 49 Times Spotted 933 | . 21 7 18 35 45 32 35 23 5 39 . 34 19 5 3 34 38 113 15 38 20 38 109 20 36 . 38 113 Peak Tracking Total 14 | . 5 3 3 4 10 7 6 6 3 6 . 14 4 2 3 6 11 12 4 6 4 7 12 5 7 . 7 12 Tactical Retreats 39 | . 3 . 1 2 1 . 6 3 1 1 . 1 2 . . 1 . 4 . . . . 7 . 1 . 2 3 Traps | -11 -10 -10 -9 -9 -8 -8 -8 -8 -7 -7 -7 -7 -6 -6 -6 -6 -5 -5 -4 -4 -3 -3 -3 -2 -2 -1 -1 -1 ------- Run | Yrd Mat Min Mat Sto Mat Gar Mat Gar Fac Gar Fac Gar Fac Was Fac Gar Fac Gar Fac Gar Res Gar Tes Res Gar Acc Gar Acc Traps Triggered 61 | . 4 . . 1 . 7 . 4 . 11 . 2 1 . . 3 . 4 1 3 . 8 . . 5 . 6 1 Indirectly . | . . . . . . . . . . . . . . . . . . . . . . . . . . . . . Trap Hack Attempts . | . . . . . . . . . . . . . . . . . . . . . . . . . . . . . Triggered . | . . . . . . . . . . . . . . . . . . . . . . . . . . . . . Disarmed . | . . . . . . . . . . . . . . . . . . . . . . . . . . . . . Reprogrammed . | . . . . . . . . . . . . . . . . . . . . . . . . . . . . . Reused 5 | . . . . . 3 . . 1 . 1 . . . . . . . . . . . . . . . . . . Traps Extracted . | . . . . . . . . . . . . . . . . . . . . . . . . . . . . . Installed 5 | . . . . . 3 . . 1 . 1 . . . . . . . . . . . . . . . . . . Triggered 5 | . . . . . 3 . . 1 . 1 . . . . . . . . . . . . . . . . . . Most Traps Carried 5 | . . 5 5 4 4 2 2 2 1 1 . . . . . . . . . . . . . . . . . . Machines | -11 -10 -10 -9 -9 -8 -8 -8 -8 -7 -7 -7 -7 -6 -6 -6 -6 -5 -5 -4 -4 -3 -3 -3 -2 -2 -1 -1 -1 ---------- Run | Yrd Mat Min Mat Sto Mat Gar Mat Gar Fac Gar Fac Gar Fac Was Fac Gar Fac Gar Fac Gar Res Gar Tes Res Gar Acc Gar Acc Machines Disabled 100 | . 2 . . 4 . 6 5 4 . 10 . 4 . . 1 7 5 6 1 9 2 6 8 1 5 . 5 9 Max in Single Turn 2 | . 1 . . 1 . 1 1 1 . 1 . 1 . . 1 1 1 1 1 2 1 1 1 1 1 . 1 1 Garrison Access 4 | . . . . . . . . . . . . . . . . . . . . . . . 1 . . . . 3 Garrison Relay 40 | . . . . . . 4 . 3 . 5 . 4 . . . 2 . 4 . 4 . 4 . . 5 . 5 . Phase Generator 2 | . . . . . . . . . . 1 . . . . . 1 . . . . . . . . . . . . Machines Repaired . | . . . . . . . . . . . . . . . . . . . . . . . . . . . . . Machines Dismantled 9 | . . . . 1 . 1 . . . 5 . . . . . . . . . . . . . . . . . 2 Machines Sabotaged . | . . . . . . . . . . . . . . . . . . . . . . . . . . . . . Overloaded Fab Kills . | . . . . . . . . . . . . . . . . . . . . . . . . . . . . . Hacking | -11 -10 -10 -9 -9 -8 -8 -8 -8 -7 -7 -7 -7 -6 -6 -6 -6 -5 -5 -4 -4 -3 -3 -3 -2 -2 -1 -1 -1 --------- Run | Yrd Mat Min Mat Sto Mat Gar Mat Gar Fac Gar Fac Gar Fac Was Fac Gar Fac Gar Fac Gar Res Gar Tes Res Gar Acc Gar Acc Machines Accessed 71 | . 7 . 7 11 6 5 4 3 2 4 1 1 . . 2 1 1 1 1 3 1 2 1 2 3 1 1 . Terminals 57 | . 7 . 6 10 5 5 2 3 1 4 . 1 . . 1 1 . 1 . 3 . 2 . 1 3 . 1 . Fabricators . | . . . . . . . . . . . . . . . . . . . . . . . . . . . . . Repair Stations . | . . . . . . . . . . . . . . . . . . . . . . . . . . . . . Recycling Units 1 | . . . . 1 . . . . . . . . . . . . . . . . . . . . . . . . Scanalyzers 2 | . . . 1 . . . 1 . . . . . . . . . . . . . . . . . . . . . Garrison Access 11 | . . . . . 1 . 1 . 1 . 1 . . . 1 . 1 . 1 . 1 . 1 1 . 1 . . Total Hacks 138 | . 16 . 21 18 17 9 7 3 3 5 1 2 . . 5 4 1 2 1 7 1 4 1 2 6 1 1 . Successful 76 | . 8 . 10 15 13 2 6 1 1 1 1 . . . 3 1 1 1 1 1 1 1 1 2 3 1 1 . Failed 61 | . 8 . 10 3 4 7 1 2 2 4 . 2 . . 2 3 . 1 . 6 . 3 . . 3 . . . Catastrophic 10 | . 1 . . . . 2 . 1 . 1 . 1 . . . . . 1 . 3 . . . . . . . . Database Lockouts 1 | . . . 1 . . . . . . . . . . . . . . . . . . . . . . . . . Manual 55 | . 14 . 15 9 10 . 3 . 2 . . . . . 2 . . . . . . . . . . . . . Terminals 121 | . 16 . 19 16 16 9 4 3 2 5 . 2 . . 4 4 . 2 . 7 . 4 . 1 6 . 1 . Fabricators . | . . . . . . . . . . . . . . . . . . . . . . . . . . . . . Repair Stations . | . . . . . . . . . . . . . . . . . . . . . . . . . . . . . Recycling Units 2 | . . . . 2 . . . . . . . . . . . . . . . . . . . . . . . . Scanalyzers 4 | . . . 2 . . . 2 . . . . . . . . . . . . . . . . . . . . . Garrison Access 11 | . . . . . 1 . 1 . 1 . 1 . . . 1 . 1 . 1 . 1 . 1 1 . 1 . . Terminal Hacks 25 | . 1 . 1 5 4 2 . 1 . 1 . . . . 1 1 . 1 . 1 . 1 . 1 3 . 1 . Record 1 | . . . . . . . . . . . . . . . . . . . . . . . . 1 . . . . Open Door 5 | . . . . 4 . . . . . . . . . . . . . . . . . . . . 1 . . . Emergency Access Points 5 | . . . . . . 1 . . . 1 . . . . . 1 . 1 . . . . . . 1 . . . Alert Level 1 | . . . . . 1 . . . . . . . . . . . . . . . . . . . . . . . Unreport Threat 1 | . . . 1 . . . . . . . . . . . . . . . . . . . . . . . . . Locate Traps 2 | . . . . . 1 . . . . . . . . . 1 . . . . . . . . . . . . . Hauler Manifests 4 | . 1 . . 1 2 . . . . . . . . . . . . . . . . . . . . . . . Garrison Registry 3 | . . . . . . 1 . . . . . . . . . . . . . . . . . . 1 . 1 . Patrol Navigation 1 | . . . . . . . . . . . . . . . . . . . . 1 . . . . . . . . Security Stations 2 | . . . . . . . . 1 . . . . . . . . . . . . . 1 . . . . . . Fabricator Hacks . | . . . . . . . . . . . . . . . . . . . . . . . . . . . . . Repair Station Hacks . | . . . . . . . . . . . . . . . . . . . . . . . . . . . . . Recycling Unit Hacks 2 | . . . . 2 . . . . . . . . . . . . . . . . . . . . . . . . Process 1 | . . . . 1 . . . . . . . . . . . . . . . . . . . . . . . . Report Inventory 1 | . . . . 1 . . . . . . . . . . . . . . . . . . . . . . . . Scanalyzer 3 | . . . 1 . . . 2 . . . . . . . . . . . . . . . . . . . . . Retrieve Study 3 | . . . 1 . . . 2 . . . . . . . . . . . . . . . . . . . . . Garrison Access Hacks 11 | . . . . . 1 . 1 . 1 . 1 . . . 1 . 1 . 1 . 1 . 1 1 . 1 . . Unlock Access 10 | . . . . . 1 . 1 . 1 . 1 . . . 1 . 1 . 1 . 1 . . 1 . 1 . . Seal Access 1 | . . . . . . . . . . . . . . . . . . . . . . . 1 . . . . . Unauthorized Hacks 35 | . 7 . 8 8 8 . 3 . . . . . . . 1 . . . . . . . . . . . . . Terminals 35 | . 7 . 8 8 8 . 3 . . . . . . . 1 . . . . . . . . . . . . . Botnet 11 | . 1 . 3 2 3 . 1 . . . . . . . 1 . . . . . . . . . . . . . Operators 1 | . . . . 1 . . . . . . . . . . . . . . . . . . . . . . . . Skim 23 | . 6 . 5 5 5 . 2 . . . . . . . . . . . . . . . . . . . . . Fabricators . | . . . . . . . . . . . . . . . . . . . . . . . . . . . . . Repair Stations . | . . . . . . . . . . . . . . . . . . . . . . . . . . . . . Recycling Units . | . . . . . . . . . . . . . . . . . . . . . . . . . . . . . Scanalyzers . | . . . . . . . . . . . . . . . . . . . . . . . . . . . . . Garrison Access . | . . . . . . . . . . . . . . . . . . . . . . . . . . . . . Data Cores Recovered 4 | . . . . 2 . . . . . . . . . . . . . . 1 . 1 . . . . . . . Used . | . . . . . . . . . . . . . . . . . . . . . . . . . . . . . Hacking Detections 52 | . 7 . 5 7 4 5 3 3 2 2 1 1 . . 1 1 . 1 . 3 1 1 . 1 2 1 . . Full Trace Events 6 | . 1 . . . . 2 . . . . . . . . 1 . . . . 1 . . . . 1 . . . Feedback Events 1 | . . . . . . 1 . . . . . . . . . . . . . . . . . . . . . . Corruption 1 | . . . . . . 1 . . . . . . . . . . . . . . . . . . . . . . Feedback Blocked . | . . . . . . . . . . . . . . . . . . . . . . . . . . . . . Robot Schematics Acquired 1 | . . . . . . . . . . . . . . . . . . . . . . . 1 . . . . . Robots Built . | . . . . . . . . . . . . . . . . . . . . . . . . . . . . . Authchips . | . . . . . . . . . . . . . . . . . . . . . . . . . . . . . Time . | . . . . . . . . . . . . . . . . . . . . . . . . . . . . . Total Robot Build Rating . | . . . . . . . . . . . . . . . . . . . . . . . . . . . . . Part Schematics Acquired 5 | . . . . . . . . . . . . . . . . . . . . . . . 5 . . . . . Parts Built . | . . . . . . . . . . . . . . . . . . . . . . . . . . . . . Authchips . | . . . . . . . . . . . . . . . . . . . . . . . . . . . . . Time . | . . . . . . . . . . . . . . . . . . . . . . . . . . . . . Total Part Build Rating . | . . . . . . . . . . . . . . . . . . . . . . . . . . . . . Part Studies Acquired 2 | . . . 1 . . . 1 . . . . . . . . . . . . . . . . . . . . . Parts Repaired . | . . . . . . . . . . . . . . . . . . . . . . . . . . . . . Time . | . . . . . . . . . . . . . . . . . . . . . . . . . . . . . Parts Recycled . | . . . . . . . . . . . . . . . . . . . . . . . . . . . . . Recycled Matter 421 | . . . . 421 . . . . . . . . . . . . . . . . . . . . . . . . Retrieved Matter . | . . . . . . . . . . . . . . . . . . . . . . . . . . . . . Retrieved Components . | . . . . . . . . . . . . . . . . . . . . . . . . . . . . . Parts Scanalyzed . | . . . . . . . . . . . . . . . . . . . . . . . . . . . . . Part Schematics Acquired . | . . . . . . . . . . . . . . . . . . . . . . . . . . . . . Parts Damaged . | . . . . . . . . . . . . . . . . . . . . . . . . . . . . . Bothacking | -11 -10 -10 -9 -9 -8 -8 -8 -8 -7 -7 -7 -7 -6 -6 -6 -6 -5 -5 -4 -4 -3 -3 -3 -2 -2 -1 -1 -1 ------------ Run | Yrd Mat Min Mat Sto Mat Gar Mat Gar Fac Gar Fac Gar Fac Was Fac Gar Fac Gar Fac Gar Res Gar Tes Res Gar Acc Gar Acc Used RIF Installer 12 | . . . . . . 1 . 2 . 1 . 2 . . . 1 . 1 . 1 . 1 . . 1 . 1 . Coupler Efficiency 2 | . . . . . . . . 1 . . . . . . . 1 . . . . . . . . . . . . Hotswap 1 | . . . . . . . . . . . . . . . . . . . . 1 . . . . . . . . Command Fork 1 | . . . . . . . . . . 1 . . . . . . . . . . . . . . . . . . Signal Jammer 1 | . . . . . . . . . . . . 1 . . . . . . . . . . . . . . . . Zone Cloak 1 | . . . . . . . . . . . . . . . . . . . . . . . . . . . 1 . Robot Detection 1 | . . . . . . . . . . . . 1 . . . . . . . . . . . . . . . . Patrol Navigation 1 | . . . . . . . . . . . . . . . . . . 1 . . . . . . . . . . Alert ID Control 1 | . . . . . . . . 1 . . . . . . . . . . . . . . . . . . . . Autooverride 1 | . . . . . . . . . . . . . . . . . . . . . . 1 . . . . . . Crosswire 1 | . . . . . . . . . . . . . . . . . . . . . . . . . 1 . . . Robots Hacked 158 | . . . . 1 . . 2 2 3 7 . 12 6 6 . 2 1 2 2 5 8 1 26 4 8 . 23 37 Non-combat 15 | . . . . 1 . . . . . . . . 1 . . . 1 . . . 2 . 3 . . . . 7 Combat 143 | . . . . . . . 2 2 3 7 . 12 5 6 . 2 . 2 2 5 6 1 23 4 8 . 23 30 Autooverrided 18 | . . . . . . . . . . . . . . . . . . . . . . . 5 1 . . 6 6 Robot Hacks Applied 153 | . . . . 5 . . 3 2 3 8 . 13 7 6 . 2 1 2 3 5 9 1 23 3 8 . 17 32 parse_system 8 | . . . . 1 . . . . . . . 1 . . . . . . . . . . 3 . . . 1 2 no_distress 2 | . . . . 1 . . . . . . . . . . . . . . . . . . . . . . . 1 generate_echo 1 | . . . . . . . . . . . . . . . . . . . . . . . . . . . . 1 find_chute 1 | . . . . . . . . . . . . . 1 . . . . . . . . . . . . . . . drop_inventory 3 | . . . . . . . . . . . . . . . . . . . . . 1 . . . . . . 2 find_recycling 1 | . . . . . . . . . . . . . . . . . 1 . . . . . . . . . . . ignore_parts 2 | . . . . . . . . . . . . . . . . . . . . . . . . . . . . 2 check_alert 3 | . . . . 3 . . . . . . . . . . . . . . . . . . . . . . . . purge_threat 1 | . . . . . . . . . . . . . . . . . . . . . . . . . . . . 1 block_reporting 2 | . . . . . . . . . . . . . . . . . . . . . . . 2 . . . . . disable_scanner 4 | . . . . . . . . . . . . . . . . . . . . . . . 4 . . . . . ignore_targets 6 | . . . . . . . . . . . . . . 6 . . . . . . . . . . . . . . find_garrison 3 | . . . . . . . 1 . . . . . . . . . . . 1 . 1 . . . . . . . overload_power 1 | . . . . . . . . . . . . . . . . . . . . . 1 . . . . . . . amplify_resonance 17 | . . . . . . . . 1 . 1 . 3 . . . . . . . . . . 3 . 1 . 4 4 wipe_record 1 | . . . . . . . . . . . . . . . . . . . . . . . 1 . . . . . disable_weapons 2 | . . . . . . . . . . . . . 1 . . . . . . . . . . . . . . 1 overwrite_iff 28 | . . . . . . . 2 . . 3 . 1 1 . . . . . . . . . 5 1 4 . 5 6 formatsys_high 63 | . . . . . . . . 1 3 4 . 8 3 . . 2 . 2 2 5 6 1 4 2 3 . 7 10 formatsys_deep 4 | . . . . . . . . . . . . . 1 . . . . . . . . . 1 . . . . 2 Relay Couplers Released 171 | . . . . . . 20 . 10 . 22 . 19 . . . 9 . 16 . 15 . 14 3 . 19 . 23 1 Machine Destruction 163 | . . . . . . 16 . 10 . 22 . 15 . . . 9 . 16 . 15 . 14 3 . 19 . 23 1 Programmers 8 | . . . . . . 4 . . . . . 4 . . . . . . . . . . . . . . . . Attached 57 | . . . . . . . 1 1 1 5 . 8 2 1 . 3 1 4 . 6 1 2 4 2 6 . 8 1 Crosswired 12 | . . . . . . . . . . . . . . . . . . . . . . . . . 4 . 8 . Fabnet Peak Effective % . | . . . . . . . . . . . . . . . . . . . . . . . . . . . . . Robots Rewired 14 | . . . . . . 2 . . . . . . . . . 2 . 1 . . . 3 1 . 3 . 2 . Allies Hacked 11 | . . . . . . . . . 1 . . 1 . . . . 1 . . 2 . . . . 3 . . 3 Hacks Repelled . | . . . . . . . . . . . . . . . . . . . . . . . . . . . . . Allies | -11 -10 -10 -9 -9 -8 -8 -8 -8 -7 -7 -7 -7 -6 -6 -6 -6 -5 -5 -4 -4 -3 -3 -3 -2 -2 -1 -1 -1 -------- Run | Yrd Mat Min Mat Sto Mat Gar Mat Gar Fac Gar Fac Gar Fac Was Fac Gar Fac Gar Fac Gar Res Gar Tes Res Gar Acc Gar Acc Total Allies 157 | . . 1 . 10 . 2 2 1 3 8 . 9 5 . . 6 . 5 2 6 6 4 17 5 10 . 23 32 Largest Group 10 | . . 1 . 10 . 2 1 1 2 4 4 5 3 . . 4 4 5 6 3 6 7 2 2 6 5 8 9 Highest-Rated Group 656 | . . 31 . 88 . 62 28 16 48 104 104 136 105 . . 325 325 328 377 216 463 621 123 178 317 250 583 656 Highest-Rated Ally 219 | . . 31 . 16 . 31 28 16 32 32 32 32 47 . . 148 148 99 95 116 142 142 123 89 148 64 219 99 Total Orders 19 | . . . . . . 2 . . . . . . . . . . . . . 8 . 3 . . 3 . 2 1 STAY 11 | . . . . . . 1 . . . . . . . . . . . . . 4 . 2 . . 2 . 1 1 FOLLOW 8 | . . . . . . 1 . . . . . . . . . . . . . 4 . 1 . . 1 . 1 . Ally Attacks 1212 | . . 6 . 132 . 31 4 1 2 28 . 59 30 . . 43 97 15 71 52 49 118 70 8 62 . 87 247 Total Damage 33669 | . . 65 . 1277 . 435 65 18 68 755 . 1775 449 . . 1340 2258 576 2037 1393 1625 3800 2251 386 2062 . 2749 8285 Kills 229 | . . 3 . 18 . 5 . . 1 5 . 12 2 . . 12 19 7 9 17 15 23 7 3 14 . 21 36 Allies Corrupted 10 | . . . . . . . . . . 1 . . . . . . . . 2 . . . 3 . 1 . . 3 Allies Melted 1 | . . . . . . . . . . . . 1 . . . . . . . . . . . . . . . . Intel | -11 -10 -10 -9 -9 -8 -8 -8 -8 -7 -7 -7 -7 -6 -6 -6 -6 -5 -5 -4 -4 -3 -3 -3 -2 -2 -1 -1 -1 ------- Run | Yrd Mat Min Mat Sto Mat Gar Mat Gar Fac Gar Fac Gar Fac Was Fac Gar Fac Gar Fac Gar Res Gar Tes Res Gar Acc Gar Acc Active Infowar (turns) 4873 | 50 1203 973 154 . 1026 . . . 107 1 . . . 1 . . . . . . . . . . . . . 1358 IFF 51 | . . . . . . . . . . . . . . . . . . . . . . . . . . . . 51 Structural 1114 | . . . 88 . 1026 . . . . . . . . . . . . . . . . . . . . . . . Seismic 2292 | 50 1203 973 66 . . . . . . . . . . . . . . . . . . . . . . . . . T.N.C. 1 | . . . . . . . . . . 1 . . . . . . . . . . . . . . . . . . Jamming 1466 | . . . . . . . . . 107 . . . . 1 . . . . . . . . . . . . . 1358 Robot Analysis Total . | . . . . . . . . . . . . . . . . . . . . . . . . . . . . . Derelict Logs Recovered . | . . . . . . . . . . . . . . . . . . . . . . . . . . . . . Drone Launches . | . . . . . . . . . . . . . . . . . . . . . . . . . . . . . Drone Recoveries . | . . . . . . . . . . . . . . . . . . . . . . . . . . . . . Exploration | -11 -10 -10 -9 -9 -8 -8 -8 -8 -7 -7 -7 -7 -6 -6 -6 -6 -5 -5 -4 -4 -3 -3 -3 -2 -2 -1 -1 -1 ------------- Run | Yrd Mat Min Mat Sto Mat Gar Mat Gar Fac Gar Fac Gar Fac Was Fac Gar Fac Gar Fac Gar Res Gar Tes Res Gar Acc Gar Acc Turns Passed 40085 | 177 1267 973 2072 4012 1891 1756 1446 1690 383 2420 70 1616 483 924 175 1905 1242 1962 430 1917 528 1817 2252 700 1695 34 1374 2874 Spaces Moved 16178 | 77 572 374 667 1013 583 601 459 685 161 908 40 628 159 361 85 770 424 802 225 981 302 728 674 435 1031 18 825 1590 Core 21 | 9 . . . . . . . . . . . . . . . . . . . . . . 12 . . . . . Treads 11689 | 68 572 372 667 1013 583 601 459 685 161 908 40 628 153 189 85 770 424 802 225 981 302 728 273 . . . . . Legs 4256 | . . . . . . . . . . . . . . . . . . . . . . . 357 435 1031 18 825 1590 Wheels 180 | . . 2 . . . . . . . . . . 6 172 . . . . . . . . . . . . . . Hover 32 | . . . . . . . . . . . . . . . . . . . . . . . 32 . . . . . Flight . | . . . . . . . . . . . . . . . . . . . . . . . . . . . . . Fastest Speed 50 | 50 160 110 160 240 240 240 200 216 212 160 160 160 210 160 160 160 165 145 145 145 145 145 115 110 107 187 113 113 Average Speed 183 | 147 160 232 239 240 240 240 230 216 212 188 160 197 213 196 160 189 248 178 145 147 145 214 239 110 115 187 120 114 Slowest Speed 1850 | 160 160 240 240 240 240 240 240 216 216 360 160 240 225 240 160 250 250 245 145 225 145 240 1850 116 187 187 190 116 Overloaded Moves . | . . . . . . . . . . . . . . . . . . . . . . . . . . . . . Propulsion Burnouts . | . . . . . . . . . . . . . . . . . . . . . . . . . . . . . Robots Hopped . | . . . . . . . . . . . . . . . . . . . . . . . . . . . . . Potential Cave-ins . | . . . . . . . . . . . . . . . . . . . . . . . . . . . . . Cave-ins Triggered . | . . . . . . . . . . . . . . . . . . . . . . . . . . . . . Exploration Rate (%) 51 | 5 94 66 50 96 36 86 42 61 4 97 2 70 5 100 2 89 15 82 8 84 14 71 63 15 84 1 93 44 Regions Visited 28 Branch Regions 3 Pre-discovered Areas 6 | . 1 . 1 2 2 . . . . . . . . . . . . . . . . . . . . . . . Known Exits Taken 14 | . 1 1 1 1 1 . 1 . 1 . 1 . . . 1 . 1 . 1 . 1 . . 1 . 1 . . Unknown Exits Taken 2 | 1 . . . . . . . . . . . . . . . . . . . . . . 1 . . . . . Scrap Searched 1 | . . 1 . . . . . . . . . . . . . . . . . . . . . . . . . . Spaces Dug 60 | . . . . 3 . . . 3 . 1 . . . . . . 1 . 5 15 4 . 2 5 14 . 7 . Terrain Destroyed 874 | . . . . 3 . 25 44 41 . 3 . 1 . 3 4 3 33 54 17 200 18 94 35 16 124 . 20 136 Melee 4 | . . . . 3 . . . . . 1 . . . . . . . . . . . . . . . . . . Projectile 294 | . . . . . . . 8 6 . 2 . 1 . 3 4 3 15 44 17 38 5 17 31 16 49 . 17 18 AOE 555 | . . . . . . 25 35 35 . . . . . . . . 18 . . 161 12 76 4 . 75 . . 114 Terrain Rammed . | . . . . . . . . . . . . . . . . . . . . . . . . . . . . . Walls Destroyed . | . . . . . . . . . . . . . . . . . . . . . . . . . . . . . Machines Disabled . | . . . . . . . . . . . . . . . . . . . . . . . . . . . . . Actions | -11 -10 -10 -9 -9 -8 -8 -8 -8 -7 -7 -7 -7 -6 -6 -6 -6 -5 -5 -4 -4 -3 -3 -3 -2 -2 -1 -1 -1 --------- Run | Yrd Mat Min Mat Sto Mat Gar Mat Gar Fac Gar Fac Gar Fac Was Fac Gar Fac Gar Fac Gar Res Gar Tes Res Gar Acc Gar Acc Total 23576 | 112 821 446 1066 2461 880 788 708 828 193 1364 47 852 239 470 110 1053 536 1141 288 1327 376 883 1138 615 1418 18 1145 2253 Wait 3808 | . 166 47 287 1332 123 20 135 68 12 164 6 80 23 . 6 127 1 129 13 177 35 26 180 80 137 . 161 273 Move 16157 | 76 571 373 666 1012 583 600 459 683 160 907 39 627 159 360 85 769 424 801 225 980 301 727 674 434 1030 18 824 1590 Hop . | . . . . . . . . . . . . . . . . . . . . . . . . . . . . . Pick Up 398 | 13 11 6 30 6 18 16 11 11 2 42 1 14 5 18 4 10 20 11 4 17 1 17 38 15 28 . 8 21 Fast Attach 145 | 1 1 . 2 1 5 2 1 1 1 8 . 3 . 1 1 4 12 9 4 10 3 4 11 2 10 . 20 28 Attach 216 | 6 3 2 4 . 7 7 1 5 1 24 . 10 9 17 . 4 11 6 4 6 1 9 39 9 16 . 5 10 Detach 13 | . . . . . . . . . . . . . . 3 . . 1 2 . 1 1 1 1 1 2 . . . Swap 300 | . 2 . 20 22 11 11 18 4 8 36 . 9 1 3 4 7 6 7 2 19 5 13 13 11 20 . 12 36 Drop 391 | . 7 . 20 16 20 14 16 9 2 35 1 7 . 13 4 15 23 15 2 22 1 19 18 10 30 . 17 55 Fire 1830 | 16 58 18 35 52 108 54 65 38 7 93 . 94 40 55 6 73 36 122 31 90 28 55 162 53 142 . 86 213 Melee 34 | . . . . 16 . . . . . 4 . . . . . . 2 6 3 3 . . . . . . . . Ram . | . . . . . . . . . . . . . . . . . . . . . . . . . . . . . Kick 3 | . . . . . . . . . . . . . . . . . . . . . . . 2 . . . . 1 Crush 8 | . 2 . 2 . 2 . 2 . . . . . . . . . . . . . . . . . . . . . Escape Stasis 69 | . . . . . . 14 . 8 . 12 . 4 . . . 2 . 6 . 2 . 8 . . 2 . 11 . Rewire 129 | . . . . . . 42 . . . 6 . 4 2 . . 42 . 27 . . . 4 . . 1 . 1 . Trap 5 | . . . . . 3 . . 1 . 1 . . . . . . . . . . . . . . . . . . Miscellaneous 70 | . . . . 4 . 8 . . . 32 . . . . . . . . . . . . . . . . . 26 Route ------- -11/Scrapyard -10/Materials (discovered 5 exits: *Mat x3 / *Min / Sub) -10/Mines (discovered 3 exits: *Mat x2 / Sub) -9/Materials (discovered 7 exits: *Mat x3 / *Min x2 / *Sto x2) -9/Storage (discovered 2 exits: *Mat / Rec) -8/Materials (discovered 4 exits: *Fac x3 / Gar) -8/Garrison (discovered 3 exits: *Mat x3) -8/Materials (discovered 4 exits: *Fac x3 / Gar) -8/Garrison (discovered 2 exits: *Fac x2) -7/Factory -7/Garrison (discovered 3 exits: *Fac x3) -7/Factory -7/Garrison (discovered 3 exits: [*Fac x3]) -6/Factory -6/Waste -6/Factory -6/Garrison (discovered 3 exits: *Fac x3) -5/Factory (discovered 2 exits: *Fac / Gar) -5/Garrison (discovered 3 exits: *Fac x3) -4/Factory (discovered 2 exits: *Res / Gar) -4/Garrison (discovered 3 exits: *Res x3) -3/Research -3/Garrison (discovered 3 exits: *Tes x3) -3/Testing -2/Research (discovered 2 exits: *Acc / Gar) -2/Garrison (discovered 3 exits: *Acc x3) -1/Access -1/Garrison (discovered 3 exits: [*Acc x3]) -1/Access History --------- Turn | Location | Event 2 | -11/Scrapyard | Met Revision 17 9 | -11/Scrapyard | Discovered new exit (range 15) 178 | -11/Scrapyard | Entered Materials 302 | -10/Materials | Build established: Mutant 402 | -10/Materials | Discovered new exit (range 8) 655 | -10/Materials | Discovered new exit (range 10) 712 | -10/Materials | Discovered new exit (range 16) 1029 | -10/Materials | Discovered new exit (range 11) 1194 | -10/Materials | Identified exit to Mines 1194 | -10/Materials | Identified exit to Materials 1237 | -10/Materials | Learned Storage interactive machine intel 1268 | -10/Materials | Learned Recycling recycling unit intel 1300 | -10/Materials | Learned location of 2 exits from Mines 1322 | -10/Materials | Learned location of Storage (-9) 1356 | -10/Materials | Identified exit to Subcaves 1445 | -10/Materials | Entered Mines 1604 | -10/Mines | Received a Mining Laser from a helpful Derelict 1651 | -10/Mines | Discovered exit to Materials (range 9) 1967 | -10/Mines | Found a hidden stash of uninstalled traps 2418 | -10/Mines | Entered Materials 2418 | -9/Materials | Evolved 2 slots: Propulsion x1, Weapon x1 2419 | -9/Materials | Identified exit to Storage 2881 | -9/Materials | Build established: Scavenger-Tank 3025 | -9/Materials | Central database locked down 3202 | -9/Materials | Discovered new exit (range 16) 3815 | -9/Materials | Discovered new exit (range 10) 4072 | -9/Materials | Build established: Tank 4306 | -9/Materials | Identified exit to Mines 4306 | -9/Materials | Identified exit to Materials 4347 | -9/Materials | Learned location of Zion (-7) 4490 | -9/Materials | Entered Storage 4492 | -9/Storage | Loaded intel: 18 interactive machine locations 4531 | -9/Storage | Assisted by bots powering up and referring to "LRC-V3" 4717 | -9/Storage | Lost 3 allies 4859 | -9/Storage | Build established: Commander-Tank 5315 | -9/Storage | Identified exit to Recycling 5370 | -9/Storage | Learned location of Recycling (-9) 5384 | -9/Storage | Learned location of 1 exit from Storage 5385 | -9/Storage | Loaded intel: 16 trap records 5386 | -9/Storage | Learned location of 1 exit from Storage 5387 | -9/Storage | Learned Materials terminal intel 5388 | -9/Storage | Learned location of 1 exit from Storage 6011 | -9/Storage | Build established: Tank 6665 | -9/Storage | Build established: Mutant 7241 | -9/Storage | Build established: Tank 7702 | -9/Storage | Build established: Mutant 8500 | -9/Storage | Core integrity fell below 50% 8502 | -9/Storage | Entered Materials 8502 | -8/Materials | Evolved 2 slots: Utility x2 8503 | -8/Materials | Loaded intel: 12 terminal locations 8604 | -8/Materials | Garrison activated, responded to threat 8746 | -8/Materials | Destroyed 8 combat bots 8747 | -8/Materials | Lost 4 parts (1p1n1u1w) 8964 | -8/Materials | Build established: Scavenger-Tank 9522 | -8/Materials | Garrison activated, responded to threat 9992 | -8/Materials | Identified exit to Factory 10198 | -8/Materials | Learned Storage security intel 10331 | -8/Materials | Learned location of Extension (-4) 10391 | -8/Materials | Learned Storage emergency access door positions 10393 | -8/Materials | Identified exit to Garrison 10393 | -8/Materials | Entered Garrison 10394 | -8/Garrison | Identified exit to Materials 10491 | -8/Garrison | Triggered checkpoint 10531 | -8/Garrison | Garrison Relay disabled 10595 | -8/Garrison | Triggered checkpoint 10671 | -8/Garrison | Triggered checkpoint 10704 | -8/Garrison | Destroyed 7 combat bots 10937 | -8/Garrison | Lost 3 parts (2n1u) 11133 | -8/Garrison | Triggered checkpoint 11175 | -8/Garrison | Garrison Relay disabled 11269 | -8/Garrison | Installed Relay Interface Framework 11333 | -8/Garrison | Triggered checkpoint 11349 | -8/Garrison | Triggered checkpoint 11409 | -8/Garrison | Triggered checkpoint 11457 | -8/Garrison | Garrison Relay disabled 11577 | -8/Garrison | Build established: Bothacker-Tank 11803 | -8/Garrison | Triggered checkpoint 11846 | -8/Garrison | Discovered exit to Materials (range 76) 11846 | -8/Garrison | Discovered exit to Materials (range 18) 11846 | -8/Garrison | Discovered exit to Materials (range 76) 11934 | -8/Garrison | Garrison Relay disabled 12149 | -8/Garrison | Entered Materials 12149 | -8/Materials | Accompanied by 1 ally 12576 | -8/Materials | Core integrity fell below 50% 13233 | -8/Materials | Garrison activated, responded to threat 13420 | -8/Materials | Build established: Bothacker-Gunner 13595 | -8/Materials | Identified exit to Garrison 13595 | -8/Materials | Entered Garrison 13630 | -8/Garrison | Expanded RIF knowledge: Coupler Efficiency 13645 | -8/Garrison | Triggered checkpoint 13680 | -8/Garrison | Garrison Relay disabled 13897 | -8/Garrison | Triggered checkpoint 14123 | -8/Garrison | Core integrity fell below 20% 14269 | -8/Garrison | Triggered checkpoint 14342 | -8/Garrison | Learned Factory security intel 14355 | -8/Garrison | Garrison Relay disabled 14410 | -8/Garrison | Discovered exit to Factory (range 12) 14682 | -8/Garrison | Discovered exit to Factory (range 11) 14751 | -8/Garrison | Triggered checkpoint 14800 | -8/Garrison | Garrison Relay disabled 14933 | -8/Garrison | Triggered checkpoint 15010 | -8/Garrison | Expanded RIF knowledge: Alert ID Control 15285 | -8/Garrison | Entered Factory 15285 | -7/Factory | Evolved 2 slots: Propulsion x1, Utility x1 15546 | -7/Factory | Garrison activated, responded to threat 15666 | -7/Factory | Identified exit to Garrison 15668 | -7/Factory | Entered Garrison 15668 | -7/Garrison | Accompanied by 2 allies 15722 | -7/Garrison | Triggered checkpoint 15786 | -7/Garrison | Lost 5 parts (1p3n1u) 15817 | -7/Garrison | Expanded RIF knowledge: Command Fork 15855 | -7/Garrison | Garrison Relay disabled 16064 | -7/Garrison | P-60 Hacker assimilated allied Guardian 4c 16105 | -7/Garrison | System corruption reached 10% 16150 | -7/Garrison | Triggered checkpoint 16151 | -7/Garrison | Lost 8 parts (1n3u4w) 16265 | -7/Garrison | Phase Generator disabled 16287 | -7/Garrison | Heavy support dispatched to Factory 16579 | -7/Garrison | Build established: Bothacker-Tank 16642 | -7/Garrison | Discovered new exit (range 10) 16688 | -7/Garrison | Triggered checkpoint 16734 | -7/Garrison | Garrison Relay disabled 16816 | -7/Garrison | Triggered checkpoint 16852 | -7/Garrison | Heavy support dispatched to Factory 16878 | -7/Garrison | Discovered new exit (range 15) 17025 | -7/Garrison | Triggered checkpoint 17041 | -7/Garrison | Core integrity fell below 50% 17064 | -7/Garrison | Build established: Botlord-Tank 17105 | -7/Garrison | Garrison Relay disabled 17366 | -7/Garrison | Triggered checkpoint 17386 | -7/Garrison | Garrison Relay disabled 17401 | -7/Garrison | Garrison Relay disabled 17646 | -7/Garrison | Triggered checkpoint 17701 | -7/Garrison | P-60 Hacker assimilated allied Guardian 4d 17890 | -7/Garrison | Rescued a captive Derelict 17891 | -7/Garrison | Rescued a captive Derelict 17956 | -7/Garrison | H-XX Assembler disabled 18038 | -7/Garrison | Discovered new exit (range 3) 18088 | -7/Garrison | Entered Factory 18088 | -7/Factory | Accompanied by 4 allies 18151 | -7/Factory | Identified exit to Garrison 18158 | -7/Factory | Entered Garrison 18158 | -7/Garrison | Accompanied by 4 allies 18190 | -7/Garrison | Expanded RIF knowledge: Robot Detection 18230 | -7/Garrison | Triggered checkpoint 18271 | -7/Garrison | Garrison Relay disabled 18418 | -7/Garrison | Triggered checkpoint 18458 | -7/Garrison | Lost 6 allies 18622 | -7/Garrison | Discovered new exit (range 11) 18678 | -7/Garrison | Expanded RIF knowledge: Signal Jamming 18740 | -7/Garrison | Triggered checkpoint 18772 | -7/Garrison | Garrison Relay disabled 19100 | -7/Garrison | Discovered new exit (range 12) 19184 | -7/Garrison | Triggered checkpoint 19281 | -7/Garrison | Garrison Relay disabled 19304 | -7/Garrison | Triggered checkpoint 19466 | -7/Garrison | Triggered checkpoint 19526 | -7/Garrison | Triggered checkpoint 19553 | -7/Garrison | Core integrity fell below 20% 19604 | -7/Garrison | Lost 3 allies 19669 | -7/Garrison | Garrison Relay disabled 19757 | -7/Garrison | Discovered new exit (range 8) 19774 | -7/Garrison | Entered Factory 19774 | -6/Factory | Accompanied by 1 ally 19774 | -6/Factory | Evolved 2 slots: Utility x1, Weapon x1 19990 | -6/Factory | Lost 3 allies 20013 | -6/Factory | Garrison activated, responded to threat 20124 | -6/Factory | First assault squad dispatched 20184 | -6/Factory | Assimilated Heavy ARC 5a with formatsys_deep 20243 | -6/Factory | Spotted B-75 Beast 20257 | -6/Factory | Sucked down chute 20257 | -6/Factory | Entered Waste 20284 | -6/Waste | Lost 5 parts (1p2n1u1w) 20290 | -6/Waste | Spotted C-40 Crusher 20318 | -6/Waste | Spotted C-40 Crusher 20421 | -6/Waste | Spotted C-40 Crusher 20472 | -6/Waste | Spotted C-40 Crusher 20477 | -6/Waste | Spotted C-40 Crusher 20489 | -6/Waste | Spotted C-40 Crusher 20567 | -6/Waste | Discovered new exit (range 13) 20691 | -6/Waste | Destroyed C-40 Crusher 20796 | -6/Waste | Destroyed C-40 Crusher 20834 | -6/Waste | Destroyed C-40 Crusher 20851 | -6/Waste | Destroyed C-40 Crusher 20901 | -6/Waste | Destroyed C-40 Crusher 20993 | -6/Waste | Destroyed C-40 Crusher 21181 | -6/Waste | Entered Factory 21356 | -6/Factory | Identified exit to Garrison 21356 | -6/Factory | Entered Garrison 21388 | -6/Garrison | Triggered checkpoint 21571 | -6/Garrison | Garrison Relay disabled 21780 | -6/Garrison | Build established: Scavenger-Tank 21832 | -6/Garrison | Triggered checkpoint 21934 | -6/Garrison | Discovered new exit (range 15) 21969 | -6/Garrison | Expanded RIF knowledge: Coupler Efficiency 22014 | -6/Garrison | Phase Generator disabled 22130 | -6/Garrison | Triggered checkpoint 22158 | -6/Garrison | Spotted B-90 Cyclops 22260 | -6/Garrison | Triggered checkpoint 22295 | -6/Garrison | Discovered new exit (range 11) 22386 | -6/Garrison | Spotted B-90 Cyclops 22422 | -6/Garrison | Destroyed B-90 Cyclops 22477 | -6/Garrison | Destroyed B-90 Cyclops 22626 | -6/Garrison | Rewired B-90 Cyclops 22788 | -6/Garrison | Triggered checkpoint 22868 | -6/Garrison | Triggered checkpoint 22868 | -6/Garrison | Found embedded Infiltrators 22911 | -6/Garrison | Garrison Relay disabled 22982 | -6/Garrison | Discovered new exit (range 10) 23261 | -6/Garrison | Entered Factory 23261 | -5/Factory | Accompanied by 4 allies 23261 | -5/Factory | Evolved 2 slots: Utility x2 23583 | -5/Factory | Discovered new exit (range 15) 23827 | -5/Factory | Build established: Botlord-Tank 23861 | -5/Factory | First assault squad dispatched 24329 | -5/Factory | Cargo convoy interrupted 24391 | -5/Factory | Destroyed 10 combat bots 24393 | -5/Factory | Lost 4 parts (1n2u1w) 24431 | -5/Factory | Found Prototype Launcher 24440 | -5/Factory | Found Prototype Device 24440 | -5/Factory | Identified Exp. Actuator Array 24503 | -5/Factory | Identified exit to Garrison 24503 | -5/Factory | Entered Garrison 24617 | -5/Garrison | Triggered checkpoint 24661 | -5/Garrison | Identified Gui. Micro-nuke Launcher 24740 | -5/Garrison | Assembled breached garrison interior 25063 | -5/Garrison | Destroyed 11 combat bots 25209 | -5/Garrison | Destroyed 36 combat bots 25318 | -5/Garrison | Destroyed 23 combat bots 25360 | -5/Garrison | Garrison Relay disabled 25394 | -5/Garrison | Discovered new exit (range 14) 25557 | -5/Garrison | Discovered new exit (range 10) 25624 | -5/Garrison | Garrison Relay disabled 25824 | -5/Garrison | Expanded RIF knowledge: Patrol Navigation 25857 | -5/Garrison | Discovered new exit (range 12) 25910 | -5/Garrison | Spotted Executioner 25911 | -5/Garrison | Spotted Executioner 25926 | -5/Garrison | Destroyed Executioner 25926 | -5/Garrison | Destroyed Executioner 25972 | -5/Garrison | Rewired Striker 25975 | -5/Garrison | Found Prototype Processor 25975 | -5/Garrison | Identified Exp. Core Analyzer 25982 | -5/Garrison | Found Exp. Core Analyzer 26003 | -5/Garrison | Garrison Relay disabled 26165 | -5/Garrison | Destroyed 15 combat bots 26434 | -5/Garrison | Found embedded Infiltrators 26465 | -5/Garrison | Entered Factory 26465 | -4/Factory | Accompanied by 5 allies 26465 | -4/Factory | Evolved 2 slots: Power x1, Utility x1 26648 | -4/Factory | Discovered new exit (range 16) 26732 | -4/Factory | Unchained authorized (DW-4LL) 26796 | -4/Factory | Lost 5 allies 26895 | -4/Factory | Identified exit to Garrison 26895 | -4/Factory | Entered Garrison 26895 | -4/Garrison | Accompanied by 2 allies 26993 | -4/Garrison | Triggered checkpoint 27033 | -4/Garrison | Garrison Relay disabled 27304 | -4/Garrison | Build established: Botlord-Gunner 27418 | -4/Garrison | Spotted B-86 Titan 27431 | -4/Garrison | Assimilated Titan 7a with formatsys_high 27477 | -4/Garrison | Triggered checkpoint 27537 | -4/Garrison | Discovered new exit (range 11) 27554 | -4/Garrison | Expanded RIF knowledge: Hotswap 27565 | -4/Garrison | Triggered checkpoint 27610 | -4/Garrison | Garrison Relay disabled 27700 | -4/Garrison | Build established: Botlord-Tank 27714 | -4/Garrison | Triggered checkpoint 27717 | -4/Garrison | Triggered checkpoint 28017 | -4/Garrison | Triggered checkpoint 28084 | -4/Garrison | Discovered new exit (range 11) 28131 | -4/Garrison | Triggered checkpoint 28169 | -4/Garrison | Rescued a captive Derelict 28526 | -4/Garrison | Discovered new exit (range 10) 28547 | -4/Garrison | Triggered checkpoint 28563 | -4/Garrison | Garrison Relay disabled 28718 | -4/Garrison | Found Relay Coupler [Proto] 28721 | -4/Garrison | Found Relay Coupler [Proto] 28812 | -4/Garrison | Entered Research 28812 | -3/Research | Accompanied by 3 allies 28812 | -3/Research | Evolved 2 slots: Propulsion x1, Utility x1 29208 | -3/Research | Spotted B-86 Titan 29208 | -3/Research | Assimilated Titan 8a with formatsys_high 29307 | -3/Research | Identified exit to Garrison 29340 | -3/Research | Entered Garrison 29340 | -3/Garrison | Accompanied by 6 allies 29422 | -3/Garrison | Triggered checkpoint 29450 | -3/Garrison | Garrison Relay disabled 29464 | -3/Garrison | Lost 3 allies 29470 | -3/Garrison | Triggered checkpoint 29606 | -3/Garrison | Triggered checkpoint 29606 | -3/Garrison | Spotted B-86 Titan 29606 | -3/Garrison | Triggered checkpoint 29621 | -3/Garrison | Allies destroyed B-86 Titan 29629 | -3/Garrison | Triggered checkpoint 29648 | -3/Garrison | Lost 3 parts (1u2w) 29694 | -3/Garrison | Triggered checkpoint 29713 | -3/Garrison | Expanded RIF knowledge: Autooverride 29901 | -3/Garrison | Build established: Scavenger-Tank 30063 | -3/Garrison | Discovered new exit (range 8) 30174 | -3/Garrison | Triggered checkpoint 30203 | -3/Garrison | Garrison Relay disabled 30460 | -3/Garrison | Triggered checkpoint 30540 | -3/Garrison | Garrison Relay disabled 30620 | -3/Garrison | Discovered new exit (range 14) 30736 | -3/Garrison | Learned Testing security intel 30879 | -3/Garrison | Discovered new exit (range 8) 30912 | -3/Garrison | Triggered checkpoint 30930 | -3/Garrison | Garrison Relay disabled 31082 | -3/Garrison | System corruption reached 10% 31157 | -3/Garrison | Entered Testing 31212 | -3/Testing | Found Prototype Energy Cannon 31212 | -3/Testing | Identified Potential Cannon 31407 | -3/Testing | First assault squad dispatched 31586 | -3/Testing | Garrison activated, responded to threat 31730 | -3/Testing | Assimilated Heavy ARC 8a with formatsys_deep 31752 | -3/Testing | Scanned by Researcher 31796 | -3/Testing | Lost 3 allies 31869 | -3/Testing | Build established: Botlord-Tank 32055 | -3/Testing | Lost 7 parts (1p1n2u3w) 32398 | -3/Testing | Build established: Botlord-Gunner 32596 | -3/Testing | Core integrity fell below 50% 32674 | -3/Testing | Lost 12 parts (5n3u4w) 33016 | -3/Testing | Lost 3 parts (1n1u1w) 33108 | -3/Testing | Rewired PL-S9K284PXI1 33286 | -3/Testing | Core integrity fell below 20% 33381 | -3/Testing | Lost 7 parts (2p2n3w) 33381 | -3/Testing | Discovered new exit (range 16) 33409 | -3/Testing | Entered Research 33409 | -2/Research | Evolved 2 slots: Propulsion x1, Utility x1 33939 | -2/Research | Found Quantum Capacitor 34032 | -2/Research | Garrison activated, responded to threat 34092 | -2/Research | Identified exit to Garrison 34098 | -2/Research | Discovered new exit (range 4) 34109 | -2/Research | Entered Garrison 34109 | -2/Garrison | Accompanied by 2 allies 34125 | -2/Garrison | Triggered checkpoint 34138 | -2/Garrison | Garrison Relay disabled 34139 | -2/Garrison | Triggered checkpoint 34301 | -2/Garrison | Spotted B-90 Cyclops 34313 | -2/Garrison | Triggered checkpoint 34327 | -2/Garrison | Triggered checkpoint 34372 | -2/Garrison | Lost 6 allies 34450 | -2/Garrison | Lost 8 parts (2p2n2u2w) 34672 | -2/Garrison | Found Quantum Capacitor 34715 | -2/Garrison | Triggered checkpoint 34752 | -2/Garrison | Garrison Relay disabled 34868 | -2/Garrison | Discovered new exit (range 15) 34995 | -2/Garrison | Triggered checkpoint 35041 | -2/Garrison | Garrison Relay disabled 35187 | -2/Garrison | Triggered checkpoint 35235 | -2/Garrison | Discovered new exit (range 10) 35270 | -2/Garrison | Expanded RIF knowledge: Crosswire 35347 | -2/Garrison | Triggered checkpoint 35394 | -2/Garrison | Garrison Relay disabled 35532 | -2/Garrison | Discovered new exit (range 10) 35557 | -2/Garrison | Triggered checkpoint 35560 | -2/Garrison | Garrison Relay disabled 35591 | -2/Garrison | Discovered new exit (range 6) 35591 | -2/Garrison | Discovered new exit (range 50) 35591 | -2/Garrison | Discovered new exit (range 75) 35682 | -2/Garrison | Found Relay Coupler [Proto] 35685 | -2/Garrison | Found Relay Coupler [Proto] 35692 | -2/Garrison | Found Relay Coupler [Proto] 35804 | -2/Garrison | Entered Access 35804 | -1/Access | Accompanied by 5 allies 35804 | -1/Access | Evolved 2 slots: Utility x1, Weapon x1 35838 | -1/Access | Identified exit to Garrison 35838 | -1/Access | Entered Garrison 35838 | -1/Garrison | Accompanied by 5 allies 35878 | -1/Garrison | Triggered checkpoint 35905 | -1/Garrison | Garrison Relay disabled 36002 | -1/Garrison | Triggered checkpoint 36012 | -1/Garrison | Spotted B-99 Colossus 36013 | -1/Garrison | Assimilated Colossus 10a with formatsys_high 36015 | -1/Garrison | Triggered checkpoint 36019 | -1/Garrison | Triggered checkpoint 36019 | -1/Garrison | Triggered checkpoint 36072 | -1/Garrison | Lost 7 parts (1n2u4w) 36073 | -1/Garrison | Lost 12 allies 36285 | -1/Garrison | Garrison Relay disabled 36314 | -1/Garrison | Triggered checkpoint 36323 | -1/Garrison | Discovered new exit (range 12) 36333 | -1/Garrison | Expanded RIF knowledge: Zone Cloak 36377 | -1/Garrison | Build established: Botlord-Tank 36602 | -1/Garrison | Triggered checkpoint 36642 | -1/Garrison | Lost 3 allies 36700 | -1/Garrison | Garrison Relay disabled 36725 | -1/Garrison | Discovered new exit (range 12) 36908 | -1/Garrison | Triggered checkpoint 36934 | -1/Garrison | Garrison Relay disabled 36971 | -1/Garrison | Garrison Relay disabled 37015 | -1/Garrison | Discovered new exit (range 10) 37027 | -1/Garrison | Discovered new exit (range 75) 37027 | -1/Garrison | Discovered new exit (range 79) 37027 | -1/Garrison | Discovered new exit (range 7) 37157 | -1/Garrison | Rewired Striker 37159 | -1/Garrison | Rewired Striker 37212 | -1/Garrison | Entered Access 37212 | -1/Access | Accompanied by 6 allies 37539 | -1/Access | Garrison activated, responded to threat 37650 | -1/Access | P-80 Master assimilated allied Striker 37654 | -1/Access | Spotted Striker 37657 | -1/Access | Allies destroyed Striker 37933 | -1/Access | Lost 3 allies 38090 | -1/Access | Lost 3 parts (1n1u1w) 38153 | -1/Access | Garrison activated, responded to threat 38212 | -1/Access | First assault squad dispatched 38319 | -1/Access | Lost 3 allies 38364 | -1/Access | Assimilated Heavy ARC 10a with formatsys_deep 38382 | -1/Access | P-80 Master assimilated allied Plague 10b 38385 | -1/Access | Assimilated Heavy ARC 10b with formatsys_deep 38531 | -1/Access | Found Prototype Device 38531 | -1/Access | Identified Adv. Particle Accelerator 38680 | -1/Access | P-80 Master assimilated allied Enforcer 10d 38703 | -1/Access | System corruption reached 10% 38753 | -1/Access | Lost 3 parts (3u) 38763 | -1/Access | Found Adv. Particle Accelerator 39014 | -1/Access | Build established: Botlord-Gunner 39175 | -1/Access | Found Prototype Device 39175 | -1/Access | Identified Exp. EM Shield 39237 | -1/Access | Unchained authorized (DW-4LL) 39481 | -1/Access | Build established: Botlord-Tank 39539 | -1/Access | Lost 6 allies 39872 | -1/Access | Found Prototype Ballistic Gun 39919 | -1/Access | Identified Multirail 39974 | -1/Access | DW-4LL burst out of a wall 39974 | -1/Access | Spotted DW-4LL 40021 | -1/Access | System corruption reached 30% 40031 | -1/Access | Lost 3 allies 40051 | -1/Access | Lost 7 parts (7u) 40086 | -1/Access | Self-destructed Last Messages --------------- 40075_ System corrupted: Adv. Cooling System rejected. 40075_ K-01 Serf collects debris. 40076_ L-61 Swordsman destroyed. 40076_ G-73 Enforcer destroyed. 40078_ The unstable cave ceiling collapses. 40078_ K-01 Serf collects debris. 40079_ The unstable cave ceiling collapses. 40080_ M-36 Artificer destroyed. 40080_ Biometal Leg destroyed. 40082_ K-01 Serf collects debris. 40083_ Hyp. Railgun destroyed. 40083_ Multirail destroyed. 40084_ The unstable cave ceiling collapses. 40084_ G-73 Enforcer destroyed. 40084_ B-74 Champion destroyed. 40084_ Micro-nuke Launcher destroyed. 40084_ Destroyed Micro-nuke Launcher. 40084_ G-73 Enforcer destroyed. 40085_ K-01 Serf collects debris. Map ----- +----------------------------------------------------+ | ?????????????? #????????????????? | | ?????????????? #????????????????? | | ?????????????? #????????????????? | | ?????????????? " " #????????????????? | | ?????????????????""" """ #????????????????? | | ?????????????? """ """ #????????????????? | | ?????????????? " " #????????????????? | | ????????????? #????????????????? | | ????????????? #????????????????? | | ????????????? #????????????????? | | ????????????? #????????????????? | | ???????????????"""" #### #????????????????? | | ?????????????????""????# #????????????????? | | ???????????????????????# #????????????????? | | ???????????????????????# #????????????????? | | ???????????????????????#w k %##########???????? | | ???????????????????????# #######?? | | ???????????????????????# #?? | | ???????????????????##### #?? | | ???????????????????# ; #?? | | ???????????????????????# #?? | | ?????????????????????### #?? | | ?????????????????????# ^ #?? | | ?????????????????????# = ###?? | | ?????????????????????#= ! g% #???? | | ?????????????????#!!=#! @l ^ ! #???? | | ??????????? ;*=[%=% %% % % #???? | | ??????????# #!=!## % ]! #???? | | ?????????????????##??# = !! #???? | | ?????????????????????# #???? | | ?????????????????????## ! ! #???? | | ??????????????????????### ????? | | ????????????????????????# ????? | | ????????????????????????# ! # ?????? | | ????????????????????????## ######??????? | | ??????????????????????????# g# ????????????? | | ???????????????????????????# # ????????????? | | ????????????????????????????##?## #??????????????? | | ?????????????????????????????????????????????????? | | ?????????????????????????????????????????????????? | | ?????????????????????????????????????????????????? | | ?????????????????????????????????????????????????? | | ?????????????????????????????????????????????????? | | ?????????????????????????????????????????????????? | | ?????????????????????????????????????????????????? | | ?????????????????????????????????????????????????? | | ?????????????????????????????????????????????????? | | ?????????????????????????????????????????????????? | | ?????????????????????????????????????????????????? | | ?????????????????????????????????????????????????? | +----------------------------------------------------+ Best States ------------- Heat Dissipation 114 Coolant Potential 120 Energy Generation 47 Energy Capacity 600 Matter Stores 381 Matter Capacity 700 Sight Range 16 Terrain Scan Density 10 Jamming Range 16 Power Amplification 40 Base Temperature (-) 200 EM Shielding 2 Corruption Block 10 Armor Coverage 1200 Resistance: EM 75 Core Shielding 40 Point Defense Rating 240 Weapon Cycling 25 Phase Shifting 15 Evasion (%) 70 Targeting Accuracy 8 Target Analysis 8 Core Analysis 8 Recoil Reduction 4 Matter Filtering 50 Particle Charging 50 Relay Coupler Types 8 Relay Coupler Value 179 Item Schematics ----------------- Cld. Impulse Thruster | -3/Testing | Archive Spectral Analyzer | -3/Testing | Archive Exp. Terrain Scan Processor | -3/Testing | Archive Thunder Hammer | -3/Testing | Archive Adv. Variable Charge Gun | -3/Testing | Archive Robot Schematics ------------------ R-10 Processor | -3/Testing | Archive Fabricated ------------ Nothing Repaired ---------- Nothing Studied --------- Hvy. Assault Rifle | -9/Materials | Hacked Lgt. Treads | -8/Materials | Hacked Alien Tech Used ----------------- None Achievements -------------- Deadly Precision No Explosion For You Not Today, Chutes Tailor-made Challenges ------------ None Game ------ Seed GyrokineticVariableInterface Manual? 0 Play Time 05:28:58 Cumulative 214.3 hours Start 2026.07.19 @ 17:31:25 End 2026.07.21 @ 16:32:16 Sessions 7 Manual Loads 0 Difficulty Rogue Special Mode None Game No. 296 Rogue 296 Adventurer 0 Explorer 0 Win Type - Total 3 Types 2/0/0/1/0/0/0/0/0/0 Lore% 74 Gallery% 69 Achievement% 57 Wizard Run 0 Options --------- Layout 1 ASCII 0 Keyboard 0 Movement Mouse Keybinds 0 Fullscreen 1 Font 24/Smallcaps Map View 50x35 Zoom Use 0% Tactical HUD 1 Map Filters NONE Filters NONE Steam 1 RUN: ead906cb-5f3f-4376-a18e-a1cab44ab154